Workbook

Sheet Introduction
B2: Section 43B(h) - Reporting Tool
B5: Brief Information about the Reporting Tool:
B7: This Reporting Tool is a robust solution designed to simplify and streamline the calculation of disallowances u/s 43B(h) of the Income Tax Act, 1961, related to delayed payments to MSMEs. Additionally, it facilitates the calculation of interest u/s 16 of the MSMED Act, 2006. Also, it contains a comprehensive understanding of disclosures to be made in Tax Audit Report. The tool has been developed with a focus on user-friendliness, uniformity in reporting, ensuring accessibility and ease of use for Small and Medium CA Firms.
B10: Regards,
B11: By CA Abhishek S. Dhamne
B12: B. Com, FCA, DISA, Registered Valuer (SFA)
B13: Mobile : +91 9890 541 551
B14: Email : abhishekdhamne@ssdca.in
B16: Disclaimer: This tool is developed by S. S. Dhamne & Co., Chartered Accountants, Pune as a tool for efficient calculation of disallowance u/s 43B(h) of Income Tax Act, 1961 and interest thereon. We have strived to ensure the accuracy of this tool. Although it will not hold any responsibility for any missing information or inadvertent errors. For any suggestions, queries and feedback kindly email on abhishekdhamne@ssdca.in
B18: Date of Publishment: 24-08-2024
B19: Date of Modification: 31-08-2024

Sheet Vendor Master Sheet
A1: Name of the Firm: ABC & Co., Chartered Accountants | J1: Data input in Yellow fields only
A2: Name of the Client: XYZ Services Private Limited
A3: Compilation of Master Data for Identification of MSM Entities and Parties Eligible u/s 43B(h) of Income Tax Act, 1961
A4: Financial Year 2023-24
A5: Assessment Year 2024-25
A7: Sr. No. | B7: Name of the Party | C7: Closing Balance | D7: Type of Dealer | E7: Whether registered as MSME | F7: Classification of Entity | G7: Udyam Registration No. | H7: Udyam Registration Certificate received? | I7: Last Udyam Status updated on | J7: Whether eligible of Disallowance u/s 43B(h) | K7: Applicable Parties | L7: Filtered List
A8: 1 | B8: Shruti Enterprises | C8: 100000 | D8: Manufacturer | E8: Yes | F8: Small Entity | G8: UDYAM-MH-14-0012345 | H8: Yes | I8: 2024-03-31 | J8: =IF(OR(D8="Trader- Wholesalers & Retailers",F8="Medium Entity",F8="NA",E8="No"),"No",IF(OR(D8="Manufacturer",D8="Service Provider",F8="Micro Entity",F8="Small Entity"),"Yes"," ")) -> Yes | K8: =IF(J8="Yes",B8,"") -> Shruti Enterprises | L8: =IFERROR(INDEX('Vendor Master Sheet'!$K$7:$K$5008,SMALL(IF('Vendor Master Sheet'!$K$7:$K$5008<>"",ROW('Vendor Master Sheet'!$K$7:$K$5008)-ROW('Vendor Master Sheet'!$K$7)+1,""),ROW('Vendor Master Sheet'!B2)))," ") -> Shruti Enterprises
A9: =A8+1 -> 2 | B9: Manmath Consultancy Services LLP | C9: 175000 | D9: Service Provider | E9: Yes | F9: Small Entity | G9: UDYAM-MH-14-0012345 | H9: No | I9: 2024-03-31 | J9: =IF(OR(D9="Trader- Wholesalers & Retailers",F9="Medium Entity",F9="NA",E9="No"),"No",IF(OR(D9="Manufacturer",D9="Service Provider",F9="Micro Entity",F9="Small Entity"),"Yes"," ")) -> Yes | K9: Manmath Consultancy Services LLP | L9: =IFERROR(INDEX('Vendor Master Sheet'!$K$7:$K$5008,SMALL(IF('Vendor Master Sheet'!$K$7:$K$5008<>"",ROW('Vendor Master Sheet'!$K$7:$K$5008)-ROW('Vendor Master Sheet'!$K$7)+1,""),ROW('Vendor Master Sheet'!B3)))," ") -> Manmath Consultancy Services LLP
A10: =A9+1 -> 3 | B10: Prem Products Manufacturing Pvt. Ltd | C10: 0 | D10: Manufacturer | E10: Yes | F10: Micro Entity | G10: UDYAM-MH-14-0012345 | H10: Yes | I10: 2024-03-31 | J10: Yes | K10: Prem Products Manufacturing Pvt. Ltd | L10: =IFERROR(INDEX('Vendor Master Sheet'!$K$7:$K$5008,SMALL(IF('Vendor Master Sheet'!$K$7:$K$5008<>"",ROW('Vendor Master Sheet'!$K$7:$K$5008)-ROW('Vendor Master Sheet'!$K$7)+1,""),ROW('Vendor Master Sheet'!B4)))," ") -> Prem Products Manufacturing Pvt. Ltd
A11: 4 | B11: Deshmukh Associates | C11: 200000 | D11: Manufacturer | E11: Yes | F11: Small Entity | G11: UDYAM-MH-14-0012345 | H11: No | I11: 2024-03-31 | J11: =IF(OR(D11="Trader- Wholesalers & Retailers",F11="Medium Entity",F11="NA",E11="No"),"No",IF(OR(D11="Manufacturer",D11="Service Provider",F11="Micro Entity",F11="Small Entity"),"Yes"," ")) -> Yes | K11: Deshmukh Associates | L11: =IFERROR(INDEX('Vendor Master Sheet'!$K$7:$K$5008,SMALL(IF('Vendor Master Sheet'!$K$7:$K$5008<>"",ROW('Vendor Master Sheet'!$K$7:$K$5008)-ROW('Vendor Master Sheet'!$K$7)+1,""),ROW('Vendor Master Sheet'!B5)))," ") -> Deshmukh Associates
A12: 5 | B12: Sanskruti Transports | C12: 100000 | D12: Service Provider | E12: Yes | F12: Small Entity | G12: UDYAM-MH-14-0012345 | H12: No | I12: 2024-03-31 | J12: Yes | K12: Sanskruti Transports | L12: =IFERROR(INDEX('Vendor Master Sheet'!$K$7:$K$5008,SMALL(IF('Vendor Master Sheet'!$K$7:$K$5008<>"",ROW('Vendor Master Sheet'!$K$7:$K$5008)-ROW('Vendor Master Sheet'!$K$7)+1,""),ROW('Vendor Master Sheet'!B6)))," ") -> Sanskruti Transports
A13: 6 | B13: Sammed Wholesalers | C13: 100000 | D13: Manufacturer | E13: Yes | F13: Small Entity | G13: UDYAM-MH-14-0012345 | H13: No | I13: 2024-03-31 | J13: Yes | K13: Sammed Wholesalers | L13: =IFERROR(INDEX('Vendor Master Sheet'!$K$7:$K$5008,SMALL(IF('Vendor Master Sheet'!$K$7:$K$5008<>"",ROW('Vendor Master Sheet'!$K$7:$K$5008)-ROW('Vendor Master Sheet'!$K$7)+1,""),ROW('Vendor Master Sheet'!B7)))," ") -> Sammed Wholesalers
A14: 7 | B14: Ketaki Trading Company | C14: 100000 | D14: Trader- Wholesalers & Retailers | E14: Yes | F14: Small Entity | G14: UDYAM-MH-14-0012345 | H14: No | I14: 2024-03-31 | J14: =IF(OR(D14="Trader- Wholesalers & Retailers",F14="Medium Entity",F14="NA",E14="No"),"No",IF(OR(D14="Manufacturer",D14="Service Provider",F14="Micro Entity",F14="Small Entity"),"Yes"," ")) -> No | K14: =IF(J14="Yes",B14,"") ->  | L14: =IFERROR(INDEX('Vendor Master Sheet'!$K$7:$K$5008,SMALL(IF('Vendor Master Sheet'!$K$7:$K$5008<>"",ROW('Vendor Master Sheet'!$K$7:$K$5008)-ROW('Vendor Master Sheet'!$K$7)+1,""),ROW('Vendor Master Sheet'!B8)))," ") -> 
A15: 8 | L15: =IFERROR(INDEX('Vendor Master Sheet'!$K$7:$K$5008,SMALL(IF('Vendor Master Sheet'!$K$7:$K$5008<>"",ROW('Vendor Master Sheet'!$K$7:$K$5008)-ROW('Vendor Master Sheet'!$K$7)+1,""),ROW('Vendor Master Sheet'!B9)))," ") -> 
A16: 9 | L16: =IFERROR(INDEX('Vendor Master Sheet'!$K$7:$K$5008,SMALL(IF('Vendor Master Sheet'!$K$7:$K$5008<>"",ROW('Vendor Master Sheet'!$K$7:$K$5008)-ROW('Vendor Master Sheet'!$K$7)+1,""),ROW('Vendor Master Sheet'!B10)))," ") -> 
A17: 10 | L17: =IFERROR(INDEX('Vendor Master Sheet'!$K$7:$K$5008,SMALL(IF('Vendor Master Sheet'!$K$7:$K$5008<>"",ROW('Vendor Master Sheet'!$K$7:$K$5008)-ROW('Vendor Master Sheet'!$K$7)+1,""),ROW('Vendor Master Sheet'!B11)))," ") -> 
A18: 11 | L18: =IFERROR(INDEX('Vendor Master Sheet'!$K$7:$K$5008,SMALL(IF('Vendor Master Sheet'!$K$7:$K$5008<>"",ROW('Vendor Master Sheet'!$K$7:$K$5008)-ROW('Vendor Master Sheet'!$K$7)+1,""),ROW('Vendor Master Sheet'!B12)))," ") -> 
A19: 12 | L19: =IFERROR(INDEX('Vendor Master Sheet'!$K$7:$K$5008,SMALL(IF('Vendor Master Sheet'!$K$7:$K$5008<>"",ROW('Vendor Master Sheet'!$K$7:$K$5008)-ROW('Vendor Master Sheet'!$K$7)+1,""),ROW('Vendor Master Sheet'!B13)))," ") -> 
A20: 13 | L20: =IFERROR(INDEX('Vendor Master Sheet'!$K$7:$K$5008,SMALL(IF('Vendor Master Sheet'!$K$7:$K$5008<>"",ROW('Vendor Master Sheet'!$K$7:$K$5008)-ROW('Vendor Master Sheet'!$K$7)+1,""),ROW('Vendor Master Sheet'!B14)))," ") -> 
A21: 14 | L21: =IFERROR(INDEX('Vendor Master Sheet'!$K$7:$K$5008,SMALL(IF('Vendor Master Sheet'!$K$7:$K$5008<>"",ROW('Vendor Master Sheet'!$K$7:$K$5008)-ROW('Vendor Master Sheet'!$K$7)+1,""),ROW('Vendor Master Sheet'!B15)))," ") -> 
A22: 15 | L22: =IFERROR(INDEX('Vendor Master Sheet'!$K$7:$K$5008,SMALL(IF('Vendor Master Sheet'!$K$7:$K$5008<>"",ROW('Vendor Master Sheet'!$K$7:$K$5008)-ROW('Vendor Master Sheet'!$K$7)+1,""),ROW('Vendor Master Sheet'!B16)))," ") -> 
A23: 16 | L23: =IFERROR(INDEX('Vendor Master Sheet'!$K$7:$K$5008,SMALL(IF('Vendor Master Sheet'!$K$7:$K$5008<>"",ROW('Vendor Master Sheet'!$K$7:$K$5008)-ROW('Vendor Master Sheet'!$K$7)+1,""),ROW('Vendor Master Sheet'!B17)))," ") -> 
A24: 17 | L24: =IFERROR(INDEX('Vendor Master Sheet'!$K$7:$K$5008,SMALL(IF('Vendor Master Sheet'!$K$7:$K$5008<>"",ROW('Vendor Master Sheet'!$K$7:$K$5008)-ROW('Vendor Master Sheet'!$K$7)+1,""),ROW('Vendor Master Sheet'!B18)))," ") -> 
A25: 18 | L25: =IFERROR(INDEX('Vendor Master Sheet'!$K$7:$K$5008,SMALL(IF('Vendor Master Sheet'!$K$7:$K$5008<>"",ROW('Vendor Master Sheet'!$K$7:$K$5008)-ROW('Vendor Master Sheet'!$K$7)+1,""),ROW('Vendor Master Sheet'!B19)))," ") -> 
A26: 19 | L26: =IFERROR(INDEX('Vendor Master Sheet'!$K$7:$K$5008,SMALL(IF('Vendor Master Sheet'!$K$7:$K$5008<>"",ROW('Vendor Master Sheet'!$K$7:$K$5008)-ROW('Vendor Master Sheet'!$K$7)+1,""),ROW('Vendor Master Sheet'!B20)))," ") -> 
A27: 20 | L27: =IFERROR(INDEX('Vendor Master Sheet'!$K$7:$K$5008,SMALL(IF('Vendor Master Sheet'!$K$7:$K$5008<>"",ROW('Vendor Master Sheet'!$K$7:$K$5008)-ROW('Vendor Master Sheet'!$K$7)+1,""),ROW('Vendor Master Sheet'!B21)))," ") -> 
A28: 21 | L28: =IFERROR(INDEX('Vendor Master Sheet'!$K$7:$K$5008,SMALL(IF('Vendor Master Sheet'!$K$7:$K$5008<>"",ROW('Vendor Master Sheet'!$K$7:$K$5008)-ROW('Vendor Master Sheet'!$K$7)+1,""),ROW('Vendor Master Sheet'!B22)))," ") -> 
A29: 22 | L29: =IFERROR(INDEX('Vendor Master Sheet'!$K$7:$K$5008,SMALL(IF('Vendor Master Sheet'!$K$7:$K$5008<>"",ROW('Vendor Master Sheet'!$K$7:$K$5008)-ROW('Vendor Master Sheet'!$K$7)+1,""),ROW('Vendor Master Sheet'!B23)))," ") -> 
A30: 23 | L30: =IFERROR(INDEX('Vendor Master Sheet'!$K$7:$K$5008,SMALL(IF('Vendor Master Sheet'!$K$7:$K$5008<>"",ROW('Vendor Master Sheet'!$K$7:$K$5008)-ROW('Vendor Master Sheet'!$K$7)+1,""),ROW('Vendor Master Sheet'!B24)))," ") -> 
A31: 24 | L31: =IFERROR(INDEX('Vendor Master Sheet'!$K$7:$K$5008,SMALL(IF('Vendor Master Sheet'!$K$7:$K$5008<>"",ROW('Vendor Master Sheet'!$K$7:$K$5008)-ROW('Vendor Master Sheet'!$K$7)+1,""),ROW('Vendor Master Sheet'!B25)))," ") -> 
A32: 25 | L32: =IFERROR(INDEX('Vendor Master Sheet'!$K$7:$K$5008,SMALL(IF('Vendor Master Sheet'!$K$7:$K$5008<>"",ROW('Vendor Master Sheet'!$K$7:$K$5008)-ROW('Vendor Master Sheet'!$K$7)+1,""),ROW('Vendor Master Sheet'!B26)))," ") -> 
A33: 26 | L33: =IFERROR(INDEX('Vendor Master Sheet'!$K$7:$K$5008,SMALL(IF('Vendor Master Sheet'!$K$7:$K$5008<>"",ROW('Vendor Master Sheet'!$K$7:$K$5008)-ROW('Vendor Master Sheet'!$K$7)+1,""),ROW('Vendor Master Sheet'!B27)))," ") -> 
A34: 27 | L34: =IFERROR(INDEX('Vendor Master Sheet'!$K$7:$K$5008,SMALL(IF('Vendor Master Sheet'!$K$7:$K$5008<>"",ROW('Vendor Master Sheet'!$K$7:$K$5008)-ROW('Vendor Master Sheet'!$K$7)+1,""),ROW('Vendor Master Sheet'!B28)))," ") -> 
A35: 28 | L35: =IFERROR(INDEX('Vendor Master Sheet'!$K$7:$K$5008,SMALL(IF('Vendor Master Sheet'!$K$7:$K$5008<>"",ROW('Vendor Master Sheet'!$K$7:$K$5008)-ROW('Vendor Master Sheet'!$K$7)+1,""),ROW('Vendor Master Sheet'!B29)))," ") -> 
A36: 29 | L36: =IFERROR(INDEX('Vendor Master Sheet'!$K$7:$K$5008,SMALL(IF('Vendor Master Sheet'!$K$7:$K$5008<>"",ROW('Vendor Master Sheet'!$K$7:$K$5008)-ROW('Vendor Master Sheet'!$K$7)+1,""),ROW('Vendor Master Sheet'!B30)))," ") -> 
A37: 30 | L37: =IFERROR(INDEX('Vendor Master Sheet'!$K$7:$K$5008,SMALL(IF('Vendor Master Sheet'!$K$7:$K$5008<>"",ROW('Vendor Master Sheet'!$K$7:$K$5008)-ROW('Vendor Master Sheet'!$K$7)+1,""),ROW('Vendor Master Sheet'!B31)))," ") -> 
A38: 31 | L38: =IFERROR(INDEX('Vendor Master Sheet'!$K$7:$K$5008,SMALL(IF('Vendor Master Sheet'!$K$7:$K$5008<>"",ROW('Vendor Master Sheet'!$K$7:$K$5008)-ROW('Vendor Master Sheet'!$K$7)+1,""),ROW('Vendor Master Sheet'!B32)))," ") -> 
A39: 32 | L39: =IFERROR(INDEX('Vendor Master Sheet'!$K$7:$K$5008,SMALL(IF('Vendor Master Sheet'!$K$7:$K$5008<>"",ROW('Vendor Master Sheet'!$K$7:$K$5008)-ROW('Vendor Master Sheet'!$K$7)+1,""),ROW('Vendor Master Sheet'!B33)))," ") -> 
A40: 33 | L40: =IFERROR(INDEX('Vendor Master Sheet'!$K$7:$K$5008,SMALL(IF('Vendor Master Sheet'!$K$7:$K$5008<>"",ROW('Vendor Master Sheet'!$K$7:$K$5008)-ROW('Vendor Master Sheet'!$K$7)+1,""),ROW('Vendor Master Sheet'!B34)))," ") -> 
A41: 34 | L41: =IFERROR(INDEX('Vendor Master Sheet'!$K$7:$K$5008,SMALL(IF('Vendor Master Sheet'!$K$7:$K$5008<>"",ROW('Vendor Master Sheet'!$K$7:$K$5008)-ROW('Vendor Master Sheet'!$K$7)+1,""),ROW('Vendor Master Sheet'!B35)))," ") -> 
A42: 35 | L42: =IFERROR(INDEX('Vendor Master Sheet'!$K$7:$K$5008,SMALL(IF('Vendor Master Sheet'!$K$7:$K$5008<>"",ROW('Vendor Master Sheet'!$K$7:$K$5008)-ROW('Vendor Master Sheet'!$K$7)+1,""),ROW('Vendor Master Sheet'!B36)))," ") -> 
A43: 36 | L43: =IFERROR(INDEX('Vendor Master Sheet'!$K$7:$K$5008,SMALL(IF('Vendor Master Sheet'!$K$7:$K$5008<>"",ROW('Vendor Master Sheet'!$K$7:$K$5008)-ROW('Vendor Master Sheet'!$K$7)+1,""),ROW('Vendor Master Sheet'!B37)))," ") -> 
A44: 37 | L44: =IFERROR(INDEX('Vendor Master Sheet'!$K$7:$K$5008,SMALL(IF('Vendor Master Sheet'!$K$7:$K$5008<>"",ROW('Vendor Master Sheet'!$K$7:$K$5008)-ROW('Vendor Master Sheet'!$K$7)+1,""),ROW('Vendor Master Sheet'!B38)))," ") -> 
A45: 38 | L45: =IFERROR(INDEX('Vendor Master Sheet'!$K$7:$K$5008,SMALL(IF('Vendor Master Sheet'!$K$7:$K$5008<>"",ROW('Vendor Master Sheet'!$K$7:$K$5008)-ROW('Vendor Master Sheet'!$K$7)+1,""),ROW('Vendor Master Sheet'!B39)))," ") -> 
A46: 39 | L46: =IFERROR(INDEX('Vendor Master Sheet'!$K$7:$K$5008,SMALL(IF('Vendor Master Sheet'!$K$7:$K$5008<>"",ROW('Vendor Master Sheet'!$K$7:$K$5008)-ROW('Vendor Master Sheet'!$K$7)+1,""),ROW('Vendor Master Sheet'!B40)))," ") -> 
A47: 40 | L47: =IFERROR(INDEX('Vendor Master Sheet'!$K$7:$K$5008,SMALL(IF('Vendor Master Sheet'!$K$7:$K$5008<>"",ROW('Vendor Master Sheet'!$K$7:$K$5008)-ROW('Vendor Master Sheet'!$K$7)+1,""),ROW('Vendor Master Sheet'!B41)))," ") -> 
A48: 41 | L48: =IFERROR(INDEX('Vendor Master Sheet'!$K$7:$K$5008,SMALL(IF('Vendor Master Sheet'!$K$7:$K$5008<>"",ROW('Vendor Master Sheet'!$K$7:$K$5008)-ROW('Vendor Master Sheet'!$K$7)+1,""),ROW('Vendor Master Sheet'!B42)))," ") -> 
A49: 42 | L49: =IFERROR(INDEX('Vendor Master Sheet'!$K$7:$K$5008,SMALL(IF('Vendor Master Sheet'!$K$7:$K$5008<>"",ROW('Vendor Master Sheet'!$K$7:$K$5008)-ROW('Vendor Master Sheet'!$K$7)+1,""),ROW('Vendor Master Sheet'!B43)))," ") -> 
A50: 43 | L50: =IFERROR(INDEX('Vendor Master Sheet'!$K$7:$K$5008,SMALL(IF('Vendor Master Sheet'!$K$7:$K$5008<>"",ROW('Vendor Master Sheet'!$K$7:$K$5008)-ROW('Vendor Master Sheet'!$K$7)+1,""),ROW('Vendor Master Sheet'!B44)))," ") -> 
A51: 44 | L51: =IFERROR(INDEX('Vendor Master Sheet'!$K$7:$K$5008,SMALL(IF('Vendor Master Sheet'!$K$7:$K$5008<>"",ROW('Vendor Master Sheet'!$K$7:$K$5008)-ROW('Vendor Master Sheet'!$K$7)+1,""),ROW('Vendor Master Sheet'!B45)))," ") -> 
A52: 45 | L52: =IFERROR(INDEX('Vendor Master Sheet'!$K$7:$K$5008,SMALL(IF('Vendor Master Sheet'!$K$7:$K$5008<>"",ROW('Vendor Master Sheet'!$K$7:$K$5008)-ROW('Vendor Master Sheet'!$K$7)+1,""),ROW('Vendor Master Sheet'!B46)))," ") -> 
A53: 46 | L53: =IFERROR(INDEX('Vendor Master Sheet'!$K$7:$K$5008,SMALL(IF('Vendor Master Sheet'!$K$7:$K$5008<>"",ROW('Vendor Master Sheet'!$K$7:$K$5008)-ROW('Vendor Master Sheet'!$K$7)+1,""),ROW('Vendor Master Sheet'!B47)))," ") -> 
A54: 47 | L54: =IFERROR(INDEX('Vendor Master Sheet'!$K$7:$K$5008,SMALL(IF('Vendor Master Sheet'!$K$7:$K$5008<>"",ROW('Vendor Master Sheet'!$K$7:$K$5008)-ROW('Vendor Master Sheet'!$K$7)+1,""),ROW('Vendor Master Sheet'!B48)))," ") -> 
A55: 48 | L55: =IFERROR(INDEX('Vendor Master Sheet'!$K$7:$K$5008,SMALL(IF('Vendor Master Sheet'!$K$7:$K$5008<>"",ROW('Vendor Master Sheet'!$K$7:$K$5008)-ROW('Vendor Master Sheet'!$K$7)+1,""),ROW('Vendor Master Sheet'!B49)))," ") -> 
A56: 49 | L56: =IFERROR(INDEX('Vendor Master Sheet'!$K$7:$K$5008,SMALL(IF('Vendor Master Sheet'!$K$7:$K$5008<>"",ROW('Vendor Master Sheet'!$K$7:$K$5008)-ROW('Vendor Master Sheet'!$K$7)+1,""),ROW('Vendor Master Sheet'!B50)))," ") -> 
A57: 50 | L57: =IFERROR(INDEX('Vendor Master Sheet'!$K$7:$K$5008,SMALL(IF('Vendor Master Sheet'!$K$7:$K$5008<>"",ROW('Vendor Master Sheet'!$K$7:$K$5008)-ROW('Vendor Master Sheet'!$K$7)+1,""),ROW('Vendor Master Sheet'!B51)))," ") -> 
A58: 51 | L58: =IFERROR(INDEX('Vendor Master Sheet'!$K$7:$K$5008,SMALL(IF('Vendor Master Sheet'!$K$7:$K$5008<>"",ROW('Vendor Master Sheet'!$K$7:$K$5008)-ROW('Vendor Master Sheet'!$K$7)+1,""),ROW('Vendor Master Sheet'!B52)))," ") -> 
A59: 52 | L59: =IFERROR(INDEX('Vendor Master Sheet'!$K$7:$K$5008,SMALL(IF('Vendor Master Sheet'!$K$7:$K$5008<>"",ROW('Vendor Master Sheet'!$K$7:$K$5008)-ROW('Vendor Master Sheet'!$K$7)+1,""),ROW('Vendor Master Sheet'!B53)))," ") -> 
A60: 53 | L60: =IFERROR(INDEX('Vendor Master Sheet'!$K$7:$K$5008,SMALL(IF('Vendor Master Sheet'!$K$7:$K$5008<>"",ROW('Vendor Master Sheet'!$K$7:$K$5008)-ROW('Vendor Master Sheet'!$K$7)+1,""),ROW('Vendor Master Sheet'!B54)))," ") -> 
A61: 54 | L61: =IFERROR(INDEX('Vendor Master Sheet'!$K$7:$K$5008,SMALL(IF('Vendor Master Sheet'!$K$7:$K$5008<>"",ROW('Vendor Master Sheet'!$K$7:$K$5008)-ROW('Vendor Master Sheet'!$K$7)+1,""),ROW('Vendor Master Sheet'!B55)))," ") -> 
A62: 55 | L62: =IFERROR(INDEX('Vendor Master Sheet'!$K$7:$K$5008,SMALL(IF('Vendor Master Sheet'!$K$7:$K$5008<>"",ROW('Vendor Master Sheet'!$K$7:$K$5008)-ROW('Vendor Master Sheet'!$K$7)+1,""),ROW('Vendor Master Sheet'!B56)))," ") -> 
A63: 56 | L63: =IFERROR(INDEX('Vendor Master Sheet'!$K$7:$K$5008,SMALL(IF('Vendor Master Sheet'!$K$7:$K$5008<>"",ROW('Vendor Master Sheet'!$K$7:$K$5008)-ROW('Vendor Master Sheet'!$K$7)+1,""),ROW('Vendor Master Sheet'!B57)))," ") -> 
A64: 57 | L64: =IFERROR(INDEX('Vendor Master Sheet'!$K$7:$K$5008,SMALL(IF('Vendor Master Sheet'!$K$7:$K$5008<>"",ROW('Vendor Master Sheet'!$K$7:$K$5008)-ROW('Vendor Master Sheet'!$K$7)+1,""),ROW('Vendor Master Sheet'!B58)))," ") -> 
A65: 58 | L65: =IFERROR(INDEX('Vendor Master Sheet'!$K$7:$K$5008,SMALL(IF('Vendor Master Sheet'!$K$7:$K$5008<>"",ROW('Vendor Master Sheet'!$K$7:$K$5008)-ROW('Vendor Master Sheet'!$K$7)+1,""),ROW('Vendor Master Sheet'!B59)))," ") -> 
A66: 59 | L66: =IFERROR(INDEX('Vendor Master Sheet'!$K$7:$K$5008,SMALL(IF('Vendor Master Sheet'!$K$7:$K$5008<>"",ROW('Vendor Master Sheet'!$K$7:$K$5008)-ROW('Vendor Master Sheet'!$K$7)+1,""),ROW('Vendor Master Sheet'!B60)))," ") -> 
A67: 60 | L67: =IFERROR(INDEX('Vendor Master Sheet'!$K$7:$K$5008,SMALL(IF('Vendor Master Sheet'!$K$7:$K$5008<>"",ROW('Vendor Master Sheet'!$K$7:$K$5008)-ROW('Vendor Master Sheet'!$K$7)+1,""),ROW('Vendor Master Sheet'!B61)))," ") -> 
A68: 61 | L68: =IFERROR(INDEX('Vendor Master Sheet'!$K$7:$K$5008,SMALL(IF('Vendor Master Sheet'!$K$7:$K$5008<>"",ROW('Vendor Master Sheet'!$K$7:$K$5008)-ROW('Vendor Master Sheet'!$K$7)+1,""),ROW('Vendor Master Sheet'!B62)))," ") -> 
A69: 62 | L69: =IFERROR(INDEX('Vendor Master Sheet'!$K$7:$K$5008,SMALL(IF('Vendor Master Sheet'!$K$7:$K$5008<>"",ROW('Vendor Master Sheet'!$K$7:$K$5008)-ROW('Vendor Master Sheet'!$K$7)+1,""),ROW('Vendor Master Sheet'!B63)))," ") -> 
A70: 63 | L70: =IFERROR(INDEX('Vendor Master Sheet'!$K$7:$K$5008,SMALL(IF('Vendor Master Sheet'!$K$7:$K$5008<>"",ROW('Vendor Master Sheet'!$K$7:$K$5008)-ROW('Vendor Master Sheet'!$K$7)+1,""),ROW('Vendor Master Sheet'!B64)))," ") -> 
A71: 64 | L71: =IFERROR(INDEX('Vendor Master Sheet'!$K$7:$K$5008,SMALL(IF('Vendor Master Sheet'!$K$7:$K$5008<>"",ROW('Vendor Master Sheet'!$K$7:$K$5008)-ROW('Vendor Master Sheet'!$K$7)+1,""),ROW('Vendor Master Sheet'!B65)))," ") -> 
A72: 65 | K72: =IF(J72="Yes",B72,"") ->  | L72: =IFERROR(INDEX('Vendor Master Sheet'!$K$7:$K$5008,SMALL(IF('Vendor Master Sheet'!$K$7:$K$5008<>"",ROW('Vendor Master Sheet'!$K$7:$K$5008)-ROW('Vendor Master Sheet'!$K$7)+1,""),ROW('Vendor Master Sheet'!B66)))," ") -> 
A73: 66 | J73: =IF(OR(D73="Trader- Wholesalers & Retailers",F73="Medium Entity",F73="NA",E73="No"),"No",IF(OR(D73="Manufacturer",D73="Service Provider",F73="Micro Entity",F73="Small Entity"),"Yes"," ")) ->  | L73: =IFERROR(INDEX('Vendor Master Sheet'!$K$7:$K$5008,SMALL(IF('Vendor Master Sheet'!$K$7:$K$5008<>"",ROW('Vendor Master Sheet'!$K$7:$K$5008)-ROW('Vendor Master Sheet'!$K$7)+1,""),ROW('Vendor Master Sheet'!B67)))," ") -> 
A74: =A73+1 -> 67 | L74: =IFERROR(INDEX('Vendor Master Sheet'!$K$7:$K$5008,SMALL(IF('Vendor Master Sheet'!$K$7:$K$5008<>"",ROW('Vendor Master Sheet'!$K$7:$K$5008)-ROW('Vendor Master Sheet'!$K$7)+1,""),ROW('Vendor Master Sheet'!B68)))," ") -> 
A75: 68 | L75: =IFERROR(INDEX('Vendor Master Sheet'!$K$7:$K$5008,SMALL(IF('Vendor Master Sheet'!$K$7:$K$5008<>"",ROW('Vendor Master Sheet'!$K$7:$K$5008)-ROW('Vendor Master Sheet'!$K$7)+1,""),ROW('Vendor Master Sheet'!B69)))," ") -> 
A76: 69 | L76: =IFERROR(INDEX('Vendor Master Sheet'!$K$7:$K$5008,SMALL(IF('Vendor Master Sheet'!$K$7:$K$5008<>"",ROW('Vendor Master Sheet'!$K$7:$K$5008)-ROW('Vendor Master Sheet'!$K$7)+1,""),ROW('Vendor Master Sheet'!B70)))," ") -> 
A77: 70 | L77: =IFERROR(INDEX('Vendor Master Sheet'!$K$7:$K$5008,SMALL(IF('Vendor Master Sheet'!$K$7:$K$5008<>"",ROW('Vendor Master Sheet'!$K$7:$K$5008)-ROW('Vendor Master Sheet'!$K$7)+1,""),ROW('Vendor Master Sheet'!B71)))," ") -> 
A78: 71 | L78: =IFERROR(INDEX('Vendor Master Sheet'!$K$7:$K$5008,SMALL(IF('Vendor Master Sheet'!$K$7:$K$5008<>"",ROW('Vendor Master Sheet'!$K$7:$K$5008)-ROW('Vendor Master Sheet'!$K$7)+1,""),ROW('Vendor Master Sheet'!B72)))," ") -> 
A79: 72 | L79: =IFERROR(INDEX('Vendor Master Sheet'!$K$7:$K$5008,SMALL(IF('Vendor Master Sheet'!$K$7:$K$5008<>"",ROW('Vendor Master Sheet'!$K$7:$K$5008)-ROW('Vendor Master Sheet'!$K$7)+1,""),ROW('Vendor Master Sheet'!B73)))," ") -> 
A80: 73 | L80: =IFERROR(INDEX('Vendor Master Sheet'!$K$7:$K$5008,SMALL(IF('Vendor Master Sheet'!$K$7:$K$5008<>"",ROW('Vendor Master Sheet'!$K$7:$K$5008)-ROW('Vendor Master Sheet'!$K$7)+1,""),ROW('Vendor Master Sheet'!B74)))," ") -> 
A81: 74 | L81: =IFERROR(INDEX('Vendor Master Sheet'!$K$7:$K$5008,SMALL(IF('Vendor Master Sheet'!$K$7:$K$5008<>"",ROW('Vendor Master Sheet'!$K$7:$K$5008)-ROW('Vendor Master Sheet'!$K$7)+1,""),ROW('Vendor Master Sheet'!B75)))," ") -> 
A82: 75 | L82: =IFERROR(INDEX('Vendor Master Sheet'!$K$7:$K$5008,SMALL(IF('Vendor Master Sheet'!$K$7:$K$5008<>"",ROW('Vendor Master Sheet'!$K$7:$K$5008)-ROW('Vendor Master Sheet'!$K$7)+1,""),ROW('Vendor Master Sheet'!B76)))," ") -> 
A83: 76 | L83: =IFERROR(INDEX('Vendor Master Sheet'!$K$7:$K$5008,SMALL(IF('Vendor Master Sheet'!$K$7:$K$5008<>"",ROW('Vendor Master Sheet'!$K$7:$K$5008)-ROW('Vendor Master Sheet'!$K$7)+1,""),ROW('Vendor Master Sheet'!B77)))," ") -> 
A84: 77 | L84: =IFERROR(INDEX('Vendor Master Sheet'!$K$7:$K$5008,SMALL(IF('Vendor Master Sheet'!$K$7:$K$5008<>"",ROW('Vendor Master Sheet'!$K$7:$K$5008)-ROW('Vendor Master Sheet'!$K$7)+1,""),ROW('Vendor Master Sheet'!B78)))," ") -> 
A85: 78 | L85: =IFERROR(INDEX('Vendor Master Sheet'!$K$7:$K$5008,SMALL(IF('Vendor Master Sheet'!$K$7:$K$5008<>"",ROW('Vendor Master Sheet'!$K$7:$K$5008)-ROW('Vendor Master Sheet'!$K$7)+1,""),ROW('Vendor Master Sheet'!B79)))," ") -> 
A86: 79 | L86: =IFERROR(INDEX('Vendor Master Sheet'!$K$7:$K$5008,SMALL(IF('Vendor Master Sheet'!$K$7:$K$5008<>"",ROW('Vendor Master Sheet'!$K$7:$K$5008)-ROW('Vendor Master Sheet'!$K$7)+1,""),ROW('Vendor Master Sheet'!B80)))," ") -> 
A87: 80 | L87: =IFERROR(INDEX('Vendor Master Sheet'!$K$7:$K$5008,SMALL(IF('Vendor Master Sheet'!$K$7:$K$5008<>"",ROW('Vendor Master Sheet'!$K$7:$K$5008)-ROW('Vendor Master Sheet'!$K$7)+1,""),ROW('Vendor Master Sheet'!B81)))," ") -> 
A88: 81 | L88: =IFERROR(INDEX('Vendor Master Sheet'!$K$7:$K$5008,SMALL(IF('Vendor Master Sheet'!$K$7:$K$5008<>"",ROW('Vendor Master Sheet'!$K$7:$K$5008)-ROW('Vendor Master Sheet'!$K$7)+1,""),ROW('Vendor Master Sheet'!B82)))," ") -> 
A89: 82 | L89: =IFERROR(INDEX('Vendor Master Sheet'!$K$7:$K$5008,SMALL(IF('Vendor Master Sheet'!$K$7:$K$5008<>"",ROW('Vendor Master Sheet'!$K$7:$K$5008)-ROW('Vendor Master Sheet'!$K$7)+1,""),ROW('Vendor Master Sheet'!B83)))," ") -> 
A90: 83 | L90: =IFERROR(INDEX('Vendor Master Sheet'!$K$7:$K$5008,SMALL(IF('Vendor Master Sheet'!$K$7:$K$5008<>"",ROW('Vendor Master Sheet'!$K$7:$K$5008)-ROW('Vendor Master Sheet'!$K$7)+1,""),ROW('Vendor Master Sheet'!B84)))," ") -> 
A91: 84 | L91: =IFERROR(INDEX('Vendor Master Sheet'!$K$7:$K$5008,SMALL(IF('Vendor Master Sheet'!$K$7:$K$5008<>"",ROW('Vendor Master Sheet'!$K$7:$K$5008)-ROW('Vendor Master Sheet'!$K$7)+1,""),ROW('Vendor Master Sheet'!B85)))," ") -> 
A92: 85 | L92: =IFERROR(INDEX('Vendor Master Sheet'!$K$7:$K$5008,SMALL(IF('Vendor Master Sheet'!$K$7:$K$5008<>"",ROW('Vendor Master Sheet'!$K$7:$K$5008)-ROW('Vendor Master Sheet'!$K$7)+1,""),ROW('Vendor Master Sheet'!B86)))," ") -> 
A93: 86 | L93: =IFERROR(INDEX('Vendor Master Sheet'!$K$7:$K$5008,SMALL(IF('Vendor Master Sheet'!$K$7:$K$5008<>"",ROW('Vendor Master Sheet'!$K$7:$K$5008)-ROW('Vendor Master Sheet'!$K$7)+1,""),ROW('Vendor Master Sheet'!B87)))," ") -> 
A94: 87 | L94: =IFERROR(INDEX('Vendor Master Sheet'!$K$7:$K$5008,SMALL(IF('Vendor Master Sheet'!$K$7:$K$5008<>"",ROW('Vendor Master Sheet'!$K$7:$K$5008)-ROW('Vendor Master Sheet'!$K$7)+1,""),ROW('Vendor Master Sheet'!B88)))," ") -> 
A95: 88 | L95: =IFERROR(INDEX('Vendor Master Sheet'!$K$7:$K$5008,SMALL(IF('Vendor Master Sheet'!$K$7:$K$5008<>"",ROW('Vendor Master Sheet'!$K$7:$K$5008)-ROW('Vendor Master Sheet'!$K$7)+1,""),ROW('Vendor Master Sheet'!B89)))," ") -> 
A96: 89 | L96: =IFERROR(INDEX('Vendor Master Sheet'!$K$7:$K$5008,SMALL(IF('Vendor Master Sheet'!$K$7:$K$5008<>"",ROW('Vendor Master Sheet'!$K$7:$K$5008)-ROW('Vendor Master Sheet'!$K$7)+1,""),ROW('Vendor Master Sheet'!B90)))," ") -> 
A97: 90 | L97: =IFERROR(INDEX('Vendor Master Sheet'!$K$7:$K$5008,SMALL(IF('Vendor Master Sheet'!$K$7:$K$5008<>"",ROW('Vendor Master Sheet'!$K$7:$K$5008)-ROW('Vendor Master Sheet'!$K$7)+1,""),ROW('Vendor Master Sheet'!B91)))," ") -> 
A98: 91 | L98: =IFERROR(INDEX('Vendor Master Sheet'!$K$7:$K$5008,SMALL(IF('Vendor Master Sheet'!$K$7:$K$5008<>"",ROW('Vendor Master Sheet'!$K$7:$K$5008)-ROW('Vendor Master Sheet'!$K$7)+1,""),ROW('Vendor Master Sheet'!B92)))," ") -> 
A99: 92 | L99: =IFERROR(INDEX('Vendor Master Sheet'!$K$7:$K$5008,SMALL(IF('Vendor Master Sheet'!$K$7:$K$5008<>"",ROW('Vendor Master Sheet'!$K$7:$K$5008)-ROW('Vendor Master Sheet'!$K$7)+1,""),ROW('Vendor Master Sheet'!B93)))," ") -> 
A100: 93 | L100: =IFERROR(INDEX('Vendor Master Sheet'!$K$7:$K$5008,SMALL(IF('Vendor Master Sheet'!$K$7:$K$5008<>"",ROW('Vendor Master Sheet'!$K$7:$K$5008)-ROW('Vendor Master Sheet'!$K$7)+1,""),ROW('Vendor Master Sheet'!B94)))," ") -> 
A101: 94 | L101: =IFERROR(INDEX('Vendor Master Sheet'!$K$7:$K$5008,SMALL(IF('Vendor Master Sheet'!$K$7:$K$5008<>"",ROW('Vendor Master Sheet'!$K$7:$K$5008)-ROW('Vendor Master Sheet'!$K$7)+1,""),ROW('Vendor Master Sheet'!B95)))," ") -> 
A102: 95 | L102: =IFERROR(INDEX('Vendor Master Sheet'!$K$7:$K$5008,SMALL(IF('Vendor Master Sheet'!$K$7:$K$5008<>"",ROW('Vendor Master Sheet'!$K$7:$K$5008)-ROW('Vendor Master Sheet'!$K$7)+1,""),ROW('Vendor Master Sheet'!B96)))," ") -> 
A103: 96 | L103: =IFERROR(INDEX('Vendor Master Sheet'!$K$7:$K$5008,SMALL(IF('Vendor Master Sheet'!$K$7:$K$5008<>"",ROW('Vendor Master Sheet'!$K$7:$K$5008)-ROW('Vendor Master Sheet'!$K$7)+1,""),ROW('Vendor Master Sheet'!B97)))," ") -> 
A104: 97 | L104: =IFERROR(INDEX('Vendor Master Sheet'!$K$7:$K$5008,SMALL(IF('Vendor Master Sheet'!$K$7:$K$5008<>"",ROW('Vendor Master Sheet'!$K$7:$K$5008)-ROW('Vendor Master Sheet'!$K$7)+1,""),ROW('Vendor Master Sheet'!B98)))," ") -> 
A105: 98 | L105: =IFERROR(INDEX('Vendor Master Sheet'!$K$7:$K$5008,SMALL(IF('Vendor Master Sheet'!$K$7:$K$5008<>"",ROW('Vendor Master Sheet'!$K$7:$K$5008)-ROW('Vendor Master Sheet'!$K$7)+1,""),ROW('Vendor Master Sheet'!B99)))," ") -> 
A106: 99 | L106: =IFERROR(INDEX('Vendor Master Sheet'!$K$7:$K$5008,SMALL(IF('Vendor Master Sheet'!$K$7:$K$5008<>"",ROW('Vendor Master Sheet'!$K$7:$K$5008)-ROW('Vendor Master Sheet'!$K$7)+1,""),ROW('Vendor Master Sheet'!B100)))," ") -> 
A107: 100 | L107: =IFERROR(INDEX('Vendor Master Sheet'!$K$7:$K$5008,SMALL(IF('Vendor Master Sheet'!$K$7:$K$5008<>"",ROW('Vendor Master Sheet'!$K$7:$K$5008)-ROW('Vendor Master Sheet'!$K$7)+1,""),ROW('Vendor Master Sheet'!B101)))," ") -> 
A108: 101 | L108: =IFERROR(INDEX('Vendor Master Sheet'!$K$7:$K$5008,SMALL(IF('Vendor Master Sheet'!$K$7:$K$5008<>"",ROW('Vendor Master Sheet'!$K$7:$K$5008)-ROW('Vendor Master Sheet'!$K$7)+1,""),ROW('Vendor Master Sheet'!B102)))," ") -> 
A109: 102 | L109: =IFERROR(INDEX('Vendor Master Sheet'!$K$7:$K$5008,SMALL(IF('Vendor Master Sheet'!$K$7:$K$5008<>"",ROW('Vendor Master Sheet'!$K$7:$K$5008)-ROW('Vendor Master Sheet'!$K$7)+1,""),ROW('Vendor Master Sheet'!B103)))," ") -> 
A110: 103 | L110: =IFERROR(INDEX('Vendor Master Sheet'!$K$7:$K$5008,SMALL(IF('Vendor Master Sheet'!$K$7:$K$5008<>"",ROW('Vendor Master Sheet'!$K$7:$K$5008)-ROW('Vendor Master Sheet'!$K$7)+1,""),ROW('Vendor Master Sheet'!B104)))," ") -> 
A111: 104 | L111: =IFERROR(INDEX('Vendor Master Sheet'!$K$7:$K$5008,SMALL(IF('Vendor Master Sheet'!$K$7:$K$5008<>"",ROW('Vendor Master Sheet'!$K$7:$K$5008)-ROW('Vendor Master Sheet'!$K$7)+1,""),ROW('Vendor Master Sheet'!B105)))," ") -> 
A112: 105 | L112: =IFERROR(INDEX('Vendor Master Sheet'!$K$7:$K$5008,SMALL(IF('Vendor Master Sheet'!$K$7:$K$5008<>"",ROW('Vendor Master Sheet'!$K$7:$K$5008)-ROW('Vendor Master Sheet'!$K$7)+1,""),ROW('Vendor Master Sheet'!B106)))," ") -> 
A113: 106 | L113: =IFERROR(INDEX('Vendor Master Sheet'!$K$7:$K$5008,SMALL(IF('Vendor Master Sheet'!$K$7:$K$5008<>"",ROW('Vendor Master Sheet'!$K$7:$K$5008)-ROW('Vendor Master Sheet'!$K$7)+1,""),ROW('Vendor Master Sheet'!B107)))," ") -> 
A114: 107 | L114: =IFERROR(INDEX('Vendor Master Sheet'!$K$7:$K$5008,SMALL(IF('Vendor Master Sheet'!$K$7:$K$5008<>"",ROW('Vendor Master Sheet'!$K$7:$K$5008)-ROW('Vendor Master Sheet'!$K$7)+1,""),ROW('Vendor Master Sheet'!B108)))," ") -> 
A115: 108 | L115: =IFERROR(INDEX('Vendor Master Sheet'!$K$7:$K$5008,SMALL(IF('Vendor Master Sheet'!$K$7:$K$5008<>"",ROW('Vendor Master Sheet'!$K$7:$K$5008)-ROW('Vendor Master Sheet'!$K$7)+1,""),ROW('Vendor Master Sheet'!B109)))," ") -> 
A116: 109 | L116: =IFERROR(INDEX('Vendor Master Sheet'!$K$7:$K$5008,SMALL(IF('Vendor Master Sheet'!$K$7:$K$5008<>"",ROW('Vendor Master Sheet'!$K$7:$K$5008)-ROW('Vendor Master Sheet'!$K$7)+1,""),ROW('Vendor Master Sheet'!B110)))," ") -> 
A117: 110 | L117: =IFERROR(INDEX('Vendor Master Sheet'!$K$7:$K$5008,SMALL(IF('Vendor Master Sheet'!$K$7:$K$5008<>"",ROW('Vendor Master Sheet'!$K$7:$K$5008)-ROW('Vendor Master Sheet'!$K$7)+1,""),ROW('Vendor Master Sheet'!B111)))," ") -> 
A118: 111 | L118: =IFERROR(INDEX('Vendor Master Sheet'!$K$7:$K$5008,SMALL(IF('Vendor Master Sheet'!$K$7:$K$5008<>"",ROW('Vendor Master Sheet'!$K$7:$K$5008)-ROW('Vendor Master Sheet'!$K$7)+1,""),ROW('Vendor Master Sheet'!B112)))," ") -> 
A119: 112 | L119: =IFERROR(INDEX('Vendor Master Sheet'!$K$7:$K$5008,SMALL(IF('Vendor Master Sheet'!$K$7:$K$5008<>"",ROW('Vendor Master Sheet'!$K$7:$K$5008)-ROW('Vendor Master Sheet'!$K$7)+1,""),ROW('Vendor Master Sheet'!B113)))," ") -> 
A120: 113 | L120: =IFERROR(INDEX('Vendor Master Sheet'!$K$7:$K$5008,SMALL(IF('Vendor Master Sheet'!$K$7:$K$5008<>"",ROW('Vendor Master Sheet'!$K$7:$K$5008)-ROW('Vendor Master Sheet'!$K$7)+1,""),ROW('Vendor Master Sheet'!B114)))," ") -> 
A121: 114 | L121: =IFERROR(INDEX('Vendor Master Sheet'!$K$7:$K$5008,SMALL(IF('Vendor Master Sheet'!$K$7:$K$5008<>"",ROW('Vendor Master Sheet'!$K$7:$K$5008)-ROW('Vendor Master Sheet'!$K$7)+1,""),ROW('Vendor Master Sheet'!B115)))," ") -> 
A122: 115 | L122: =IFERROR(INDEX('Vendor Master Sheet'!$K$7:$K$5008,SMALL(IF('Vendor Master Sheet'!$K$7:$K$5008<>"",ROW('Vendor Master Sheet'!$K$7:$K$5008)-ROW('Vendor Master Sheet'!$K$7)+1,""),ROW('Vendor Master Sheet'!B116)))," ") -> 
A123: 116 | L123: =IFERROR(INDEX('Vendor Master Sheet'!$K$7:$K$5008,SMALL(IF('Vendor Master Sheet'!$K$7:$K$5008<>"",ROW('Vendor Master Sheet'!$K$7:$K$5008)-ROW('Vendor Master Sheet'!$K$7)+1,""),ROW('Vendor Master Sheet'!B117)))," ") -> 
A124: 117 | L124: =IFERROR(INDEX('Vendor Master Sheet'!$K$7:$K$5008,SMALL(IF('Vendor Master Sheet'!$K$7:$K$5008<>"",ROW('Vendor Master Sheet'!$K$7:$K$5008)-ROW('Vendor Master Sheet'!$K$7)+1,""),ROW('Vendor Master Sheet'!B118)))," ") -> 
A125: 118 | L125: =IFERROR(INDEX('Vendor Master Sheet'!$K$7:$K$5008,SMALL(IF('Vendor Master Sheet'!$K$7:$K$5008<>"",ROW('Vendor Master Sheet'!$K$7:$K$5008)-ROW('Vendor Master Sheet'!$K$7)+1,""),ROW('Vendor Master Sheet'!B119)))," ") -> 
A126: 119 | L126: =IFERROR(INDEX('Vendor Master Sheet'!$K$7:$K$5008,SMALL(IF('Vendor Master Sheet'!$K$7:$K$5008<>"",ROW('Vendor Master Sheet'!$K$7:$K$5008)-ROW('Vendor Master Sheet'!$K$7)+1,""),ROW('Vendor Master Sheet'!B120)))," ") -> 
A127: 120 | L127: =IFERROR(INDEX('Vendor Master Sheet'!$K$7:$K$5008,SMALL(IF('Vendor Master Sheet'!$K$7:$K$5008<>"",ROW('Vendor Master Sheet'!$K$7:$K$5008)-ROW('Vendor Master Sheet'!$K$7)+1,""),ROW('Vendor Master Sheet'!B121)))," ") -> 
A128: 121 | L128: =IFERROR(INDEX('Vendor Master Sheet'!$K$7:$K$5008,SMALL(IF('Vendor Master Sheet'!$K$7:$K$5008<>"",ROW('Vendor Master Sheet'!$K$7:$K$5008)-ROW('Vendor Master Sheet'!$K$7)+1,""),ROW('Vendor Master Sheet'!B122)))," ") -> 
A129: 122 | L129: =IFERROR(INDEX('Vendor Master Sheet'!$K$7:$K$5008,SMALL(IF('Vendor Master Sheet'!$K$7:$K$5008<>"",ROW('Vendor Master Sheet'!$K$7:$K$5008)-ROW('Vendor Master Sheet'!$K$7)+1,""),ROW('Vendor Master Sheet'!B123)))," ") -> 
A130: 123 | L130: =IFERROR(INDEX('Vendor Master Sheet'!$K$7:$K$5008,SMALL(IF('Vendor Master Sheet'!$K$7:$K$5008<>"",ROW('Vendor Master Sheet'!$K$7:$K$5008)-ROW('Vendor Master Sheet'!$K$7)+1,""),ROW('Vendor Master Sheet'!B124)))," ") -> 
A131: 124 | L131: =IFERROR(INDEX('Vendor Master Sheet'!$K$7:$K$5008,SMALL(IF('Vendor Master Sheet'!$K$7:$K$5008<>"",ROW('Vendor Master Sheet'!$K$7:$K$5008)-ROW('Vendor Master Sheet'!$K$7)+1,""),ROW('Vendor Master Sheet'!B125)))," ") -> 
A132: 125 | L132: =IFERROR(INDEX('Vendor Master Sheet'!$K$7:$K$5008,SMALL(IF('Vendor Master Sheet'!$K$7:$K$5008<>"",ROW('Vendor Master Sheet'!$K$7:$K$5008)-ROW('Vendor Master Sheet'!$K$7)+1,""),ROW('Vendor Master Sheet'!B126)))," ") -> 
A133: 126 | L133: =IFERROR(INDEX('Vendor Master Sheet'!$K$7:$K$5008,SMALL(IF('Vendor Master Sheet'!$K$7:$K$5008<>"",ROW('Vendor Master Sheet'!$K$7:$K$5008)-ROW('Vendor Master Sheet'!$K$7)+1,""),ROW('Vendor Master Sheet'!B127)))," ") -> 
A134: 127 | L134: =IFERROR(INDEX('Vendor Master Sheet'!$K$7:$K$5008,SMALL(IF('Vendor Master Sheet'!$K$7:$K$5008<>"",ROW('Vendor Master Sheet'!$K$7:$K$5008)-ROW('Vendor Master Sheet'!$K$7)+1,""),ROW('Vendor Master Sheet'!B128)))," ") -> 
A135: 128 | L135: =IFERROR(INDEX('Vendor Master Sheet'!$K$7:$K$5008,SMALL(IF('Vendor Master Sheet'!$K$7:$K$5008<>"",ROW('Vendor Master Sheet'!$K$7:$K$5008)-ROW('Vendor Master Sheet'!$K$7)+1,""),ROW('Vendor Master Sheet'!B129)))," ") -> 
A136: 129 | K136: =IF(J136="Yes",B136,"") ->  | L136: =IFERROR(INDEX('Vendor Master Sheet'!$K$7:$K$5008,SMALL(IF('Vendor Master Sheet'!$K$7:$K$5008<>"",ROW('Vendor Master Sheet'!$K$7:$K$5008)-ROW('Vendor Master Sheet'!$K$7)+1,""),ROW('Vendor Master Sheet'!B130)))," ") -> 
A137: 130 | J137: =IF(OR(D137="Trader- Wholesalers & Retailers",F137="Medium Entity",F137="NA",E137="No"),"No",IF(OR(D137="Manufacturer",D137="Service Provider",F137="Micro Entity",F137="Small Entity"),"Yes"," ")) ->  | L137: =IFERROR(INDEX('Vendor Master Sheet'!$K$7:$K$5008,SMALL(IF('Vendor Master Sheet'!$K$7:$K$5008<>"",ROW('Vendor Master Sheet'!$K$7:$K$5008)-ROW('Vendor Master Sheet'!$K$7)+1,""),ROW('Vendor Master Sheet'!B131)))," ") -> 
A138: =A137+1 -> 131 | L138: =IFERROR(INDEX('Vendor Master Sheet'!$K$7:$K$5008,SMALL(IF('Vendor Master Sheet'!$K$7:$K$5008<>"",ROW('Vendor Master Sheet'!$K$7:$K$5008)-ROW('Vendor Master Sheet'!$K$7)+1,""),ROW('Vendor Master Sheet'!B132)))," ") -> 
A139: 132 | L139: =IFERROR(INDEX('Vendor Master Sheet'!$K$7:$K$5008,SMALL(IF('Vendor Master Sheet'!$K$7:$K$5008<>"",ROW('Vendor Master Sheet'!$K$7:$K$5008)-ROW('Vendor Master Sheet'!$K$7)+1,""),ROW('Vendor Master Sheet'!B133)))," ") -> 
A140: 133 | L140: =IFERROR(INDEX('Vendor Master Sheet'!$K$7:$K$5008,SMALL(IF('Vendor Master Sheet'!$K$7:$K$5008<>"",ROW('Vendor Master Sheet'!$K$7:$K$5008)-ROW('Vendor Master Sheet'!$K$7)+1,""),ROW('Vendor Master Sheet'!B134)))," ") -> 
A141: 134 | L141: =IFERROR(INDEX('Vendor Master Sheet'!$K$7:$K$5008,SMALL(IF('Vendor Master Sheet'!$K$7:$K$5008<>"",ROW('Vendor Master Sheet'!$K$7:$K$5008)-ROW('Vendor Master Sheet'!$K$7)+1,""),ROW('Vendor Master Sheet'!B135)))," ") -> 
A142: 135 | L142: =IFERROR(INDEX('Vendor Master Sheet'!$K$7:$K$5008,SMALL(IF('Vendor Master Sheet'!$K$7:$K$5008<>"",ROW('Vendor Master Sheet'!$K$7:$K$5008)-ROW('Vendor Master Sheet'!$K$7)+1,""),ROW('Vendor Master Sheet'!B136)))," ") -> 
A143: 136 | L143: =IFERROR(INDEX('Vendor Master Sheet'!$K$7:$K$5008,SMALL(IF('Vendor Master Sheet'!$K$7:$K$5008<>"",ROW('Vendor Master Sheet'!$K$7:$K$5008)-ROW('Vendor Master Sheet'!$K$7)+1,""),ROW('Vendor Master Sheet'!B137)))," ") -> 
A144: 137 | L144: =IFERROR(INDEX('Vendor Master Sheet'!$K$7:$K$5008,SMALL(IF('Vendor Master Sheet'!$K$7:$K$5008<>"",ROW('Vendor Master Sheet'!$K$7:$K$5008)-ROW('Vendor Master Sheet'!$K$7)+1,""),ROW('Vendor Master Sheet'!B138)))," ") -> 
A145: 138 | L145: =IFERROR(INDEX('Vendor Master Sheet'!$K$7:$K$5008,SMALL(IF('Vendor Master Sheet'!$K$7:$K$5008<>"",ROW('Vendor Master Sheet'!$K$7:$K$5008)-ROW('Vendor Master Sheet'!$K$7)+1,""),ROW('Vendor Master Sheet'!B139)))," ") -> 
A146: 139 | L146: =IFERROR(INDEX('Vendor Master Sheet'!$K$7:$K$5008,SMALL(IF('Vendor Master Sheet'!$K$7:$K$5008<>"",ROW('Vendor Master Sheet'!$K$7:$K$5008)-ROW('Vendor Master Sheet'!$K$7)+1,""),ROW('Vendor Master Sheet'!B140)))," ") -> 
A147: 140 | L147: =IFERROR(INDEX('Vendor Master Sheet'!$K$7:$K$5008,SMALL(IF('Vendor Master Sheet'!$K$7:$K$5008<>"",ROW('Vendor Master Sheet'!$K$7:$K$5008)-ROW('Vendor Master Sheet'!$K$7)+1,""),ROW('Vendor Master Sheet'!B141)))," ") -> 
A148: 141 | L148: =IFERROR(INDEX('Vendor Master Sheet'!$K$7:$K$5008,SMALL(IF('Vendor Master Sheet'!$K$7:$K$5008<>"",ROW('Vendor Master Sheet'!$K$7:$K$5008)-ROW('Vendor Master Sheet'!$K$7)+1,""),ROW('Vendor Master Sheet'!B142)))," ") -> 
A149: 142 | L149: =IFERROR(INDEX('Vendor Master Sheet'!$K$7:$K$5008,SMALL(IF('Vendor Master Sheet'!$K$7:$K$5008<>"",ROW('Vendor Master Sheet'!$K$7:$K$5008)-ROW('Vendor Master Sheet'!$K$7)+1,""),ROW('Vendor Master Sheet'!B143)))," ") -> 
A150: 143 | L150: =IFERROR(INDEX('Vendor Master Sheet'!$K$7:$K$5008,SMALL(IF('Vendor Master Sheet'!$K$7:$K$5008<>"",ROW('Vendor Master Sheet'!$K$7:$K$5008)-ROW('Vendor Master Sheet'!$K$7)+1,""),ROW('Vendor Master Sheet'!B144)))," ") -> 
A151: 144 | L151: =IFERROR(INDEX('Vendor Master Sheet'!$K$7:$K$5008,SMALL(IF('Vendor Master Sheet'!$K$7:$K$5008<>"",ROW('Vendor Master Sheet'!$K$7:$K$5008)-ROW('Vendor Master Sheet'!$K$7)+1,""),ROW('Vendor Master Sheet'!B145)))," ") -> 
A152: 145 | L152: =IFERROR(INDEX('Vendor Master Sheet'!$K$7:$K$5008,SMALL(IF('Vendor Master Sheet'!$K$7:$K$5008<>"",ROW('Vendor Master Sheet'!$K$7:$K$5008)-ROW('Vendor Master Sheet'!$K$7)+1,""),ROW('Vendor Master Sheet'!B146)))," ") -> 
A153: 146 | L153: =IFERROR(INDEX('Vendor Master Sheet'!$K$7:$K$5008,SMALL(IF('Vendor Master Sheet'!$K$7:$K$5008<>"",ROW('Vendor Master Sheet'!$K$7:$K$5008)-ROW('Vendor Master Sheet'!$K$7)+1,""),ROW('Vendor Master Sheet'!B147)))," ") -> 
A154: 147 | L154: =IFERROR(INDEX('Vendor Master Sheet'!$K$7:$K$5008,SMALL(IF('Vendor Master Sheet'!$K$7:$K$5008<>"",ROW('Vendor Master Sheet'!$K$7:$K$5008)-ROW('Vendor Master Sheet'!$K$7)+1,""),ROW('Vendor Master Sheet'!B148)))," ") -> 
A155: 148 | L155: =IFERROR(INDEX('Vendor Master Sheet'!$K$7:$K$5008,SMALL(IF('Vendor Master Sheet'!$K$7:$K$5008<>"",ROW('Vendor Master Sheet'!$K$7:$K$5008)-ROW('Vendor Master Sheet'!$K$7)+1,""),ROW('Vendor Master Sheet'!B149)))," ") -> 
A156: 149 | L156: =IFERROR(INDEX('Vendor Master Sheet'!$K$7:$K$5008,SMALL(IF('Vendor Master Sheet'!$K$7:$K$5008<>"",ROW('Vendor Master Sheet'!$K$7:$K$5008)-ROW('Vendor Master Sheet'!$K$7)+1,""),ROW('Vendor Master Sheet'!B150)))," ") -> 
A157: 150 | L157: =IFERROR(INDEX('Vendor Master Sheet'!$K$7:$K$5008,SMALL(IF('Vendor Master Sheet'!$K$7:$K$5008<>"",ROW('Vendor Master Sheet'!$K$7:$K$5008)-ROW('Vendor Master Sheet'!$K$7)+1,""),ROW('Vendor Master Sheet'!B151)))," ") -> 
A158: 151 | L158: =IFERROR(INDEX('Vendor Master Sheet'!$K$7:$K$5008,SMALL(IF('Vendor Master Sheet'!$K$7:$K$5008<>"",ROW('Vendor Master Sheet'!$K$7:$K$5008)-ROW('Vendor Master Sheet'!$K$7)+1,""),ROW('Vendor Master Sheet'!B152)))," ") -> 
A159: 152 | L159: =IFERROR(INDEX('Vendor Master Sheet'!$K$7:$K$5008,SMALL(IF('Vendor Master Sheet'!$K$7:$K$5008<>"",ROW('Vendor Master Sheet'!$K$7:$K$5008)-ROW('Vendor Master Sheet'!$K$7)+1,""),ROW('Vendor Master Sheet'!B153)))," ") -> 
A160: 153 | L160: =IFERROR(INDEX('Vendor Master Sheet'!$K$7:$K$5008,SMALL(IF('Vendor Master Sheet'!$K$7:$K$5008<>"",ROW('Vendor Master Sheet'!$K$7:$K$5008)-ROW('Vendor Master Sheet'!$K$7)+1,""),ROW('Vendor Master Sheet'!B154)))," ") -> 
A161: 154 | L161: =IFERROR(INDEX('Vendor Master Sheet'!$K$7:$K$5008,SMALL(IF('Vendor Master Sheet'!$K$7:$K$5008<>"",ROW('Vendor Master Sheet'!$K$7:$K$5008)-ROW('Vendor Master Sheet'!$K$7)+1,""),ROW('Vendor Master Sheet'!B155)))," ") -> 
A162: 155 | L162: =IFERROR(INDEX('Vendor Master Sheet'!$K$7:$K$5008,SMALL(IF('Vendor Master Sheet'!$K$7:$K$5008<>"",ROW('Vendor Master Sheet'!$K$7:$K$5008)-ROW('Vendor Master Sheet'!$K$7)+1,""),ROW('Vendor Master Sheet'!B156)))," ") -> 
A163: 156 | L163: =IFERROR(INDEX('Vendor Master Sheet'!$K$7:$K$5008,SMALL(IF('Vendor Master Sheet'!$K$7:$K$5008<>"",ROW('Vendor Master Sheet'!$K$7:$K$5008)-ROW('Vendor Master Sheet'!$K$7)+1,""),ROW('Vendor Master Sheet'!B157)))," ") -> 
A164: 157 | L164: =IFERROR(INDEX('Vendor Master Sheet'!$K$7:$K$5008,SMALL(IF('Vendor Master Sheet'!$K$7:$K$5008<>"",ROW('Vendor Master Sheet'!$K$7:$K$5008)-ROW('Vendor Master Sheet'!$K$7)+1,""),ROW('Vendor Master Sheet'!B158)))," ") -> 
A165: 158 | L165: =IFERROR(INDEX('Vendor Master Sheet'!$K$7:$K$5008,SMALL(IF('Vendor Master Sheet'!$K$7:$K$5008<>"",ROW('Vendor Master Sheet'!$K$7:$K$5008)-ROW('Vendor Master Sheet'!$K$7)+1,""),ROW('Vendor Master Sheet'!B159)))," ") -> 
A166: 159 | L166: =IFERROR(INDEX('Vendor Master Sheet'!$K$7:$K$5008,SMALL(IF('Vendor Master Sheet'!$K$7:$K$5008<>"",ROW('Vendor Master Sheet'!$K$7:$K$5008)-ROW('Vendor Master Sheet'!$K$7)+1,""),ROW('Vendor Master Sheet'!B160)))," ") -> 
A167: 160 | L167: =IFERROR(INDEX('Vendor Master Sheet'!$K$7:$K$5008,SMALL(IF('Vendor Master Sheet'!$K$7:$K$5008<>"",ROW('Vendor Master Sheet'!$K$7:$K$5008)-ROW('Vendor Master Sheet'!$K$7)+1,""),ROW('Vendor Master Sheet'!B161)))," ") -> 
A168: 161 | L168: =IFERROR(INDEX('Vendor Master Sheet'!$K$7:$K$5008,SMALL(IF('Vendor Master Sheet'!$K$7:$K$5008<>"",ROW('Vendor Master Sheet'!$K$7:$K$5008)-ROW('Vendor Master Sheet'!$K$7)+1,""),ROW('Vendor Master Sheet'!B162)))," ") -> 
A169: 162 | L169: =IFERROR(INDEX('Vendor Master Sheet'!$K$7:$K$5008,SMALL(IF('Vendor Master Sheet'!$K$7:$K$5008<>"",ROW('Vendor Master Sheet'!$K$7:$K$5008)-ROW('Vendor Master Sheet'!$K$7)+1,""),ROW('Vendor Master Sheet'!B163)))," ") -> 
A170: 163 | L170: =IFERROR(INDEX('Vendor Master Sheet'!$K$7:$K$5008,SMALL(IF('Vendor Master Sheet'!$K$7:$K$5008<>"",ROW('Vendor Master Sheet'!$K$7:$K$5008)-ROW('Vendor Master Sheet'!$K$7)+1,""),ROW('Vendor Master Sheet'!B164)))," ") -> 
A171: 164 | L171: =IFERROR(INDEX('Vendor Master Sheet'!$K$7:$K$5008,SMALL(IF('Vendor Master Sheet'!$K$7:$K$5008<>"",ROW('Vendor Master Sheet'!$K$7:$K$5008)-ROW('Vendor Master Sheet'!$K$7)+1,""),ROW('Vendor Master Sheet'!B165)))," ") -> 
A172: 165 | L172: =IFERROR(INDEX('Vendor Master Sheet'!$K$7:$K$5008,SMALL(IF('Vendor Master Sheet'!$K$7:$K$5008<>"",ROW('Vendor Master Sheet'!$K$7:$K$5008)-ROW('Vendor Master Sheet'!$K$7)+1,""),ROW('Vendor Master Sheet'!B166)))," ") -> 
A173: 166 | L173: =IFERROR(INDEX('Vendor Master Sheet'!$K$7:$K$5008,SMALL(IF('Vendor Master Sheet'!$K$7:$K$5008<>"",ROW('Vendor Master Sheet'!$K$7:$K$5008)-ROW('Vendor Master Sheet'!$K$7)+1,""),ROW('Vendor Master Sheet'!B167)))," ") -> 
A174: 167 | L174: =IFERROR(INDEX('Vendor Master Sheet'!$K$7:$K$5008,SMALL(IF('Vendor Master Sheet'!$K$7:$K$5008<>"",ROW('Vendor Master Sheet'!$K$7:$K$5008)-ROW('Vendor Master Sheet'!$K$7)+1,""),ROW('Vendor Master Sheet'!B168)))," ") -> 
A175: 168 | L175: =IFERROR(INDEX('Vendor Master Sheet'!$K$7:$K$5008,SMALL(IF('Vendor Master Sheet'!$K$7:$K$5008<>"",ROW('Vendor Master Sheet'!$K$7:$K$5008)-ROW('Vendor Master Sheet'!$K$7)+1,""),ROW('Vendor Master Sheet'!B169)))," ") -> 
A176: 169 | L176: =IFERROR(INDEX('Vendor Master Sheet'!$K$7:$K$5008,SMALL(IF('Vendor Master Sheet'!$K$7:$K$5008<>"",ROW('Vendor Master Sheet'!$K$7:$K$5008)-ROW('Vendor Master Sheet'!$K$7)+1,""),ROW('Vendor Master Sheet'!B170)))," ") -> 
A177: 170 | L177: =IFERROR(INDEX('Vendor Master Sheet'!$K$7:$K$5008,SMALL(IF('Vendor Master Sheet'!$K$7:$K$5008<>"",ROW('Vendor Master Sheet'!$K$7:$K$5008)-ROW('Vendor Master Sheet'!$K$7)+1,""),ROW('Vendor Master Sheet'!B171)))," ") -> 
A178: 171 | L178: =IFERROR(INDEX('Vendor Master Sheet'!$K$7:$K$5008,SMALL(IF('Vendor Master Sheet'!$K$7:$K$5008<>"",ROW('Vendor Master Sheet'!$K$7:$K$5008)-ROW('Vendor Master Sheet'!$K$7)+1,""),ROW('Vendor Master Sheet'!B172)))," ") -> 
A179: 172 | L179: =IFERROR(INDEX('Vendor Master Sheet'!$K$7:$K$5008,SMALL(IF('Vendor Master Sheet'!$K$7:$K$5008<>"",ROW('Vendor Master Sheet'!$K$7:$K$5008)-ROW('Vendor Master Sheet'!$K$7)+1,""),ROW('Vendor Master Sheet'!B173)))," ") -> 
A180: 173 | L180: =IFERROR(INDEX('Vendor Master Sheet'!$K$7:$K$5008,SMALL(IF('Vendor Master Sheet'!$K$7:$K$5008<>"",ROW('Vendor Master Sheet'!$K$7:$K$5008)-ROW('Vendor Master Sheet'!$K$7)+1,""),ROW('Vendor Master Sheet'!B174)))," ") -> 
A181: 174 | L181: =IFERROR(INDEX('Vendor Master Sheet'!$K$7:$K$5008,SMALL(IF('Vendor Master Sheet'!$K$7:$K$5008<>"",ROW('Vendor Master Sheet'!$K$7:$K$5008)-ROW('Vendor Master Sheet'!$K$7)+1,""),ROW('Vendor Master Sheet'!B175)))," ") -> 
A182: 175 | L182: =IFERROR(INDEX('Vendor Master Sheet'!$K$7:$K$5008,SMALL(IF('Vendor Master Sheet'!$K$7:$K$5008<>"",ROW('Vendor Master Sheet'!$K$7:$K$5008)-ROW('Vendor Master Sheet'!$K$7)+1,""),ROW('Vendor Master Sheet'!B176)))," ") -> 
A183: 176 | L183: =IFERROR(INDEX('Vendor Master Sheet'!$K$7:$K$5008,SMALL(IF('Vendor Master Sheet'!$K$7:$K$5008<>"",ROW('Vendor Master Sheet'!$K$7:$K$5008)-ROW('Vendor Master Sheet'!$K$7)+1,""),ROW('Vendor Master Sheet'!B177)))," ") -> 
A184: 177 | L184: =IFERROR(INDEX('Vendor Master Sheet'!$K$7:$K$5008,SMALL(IF('Vendor Master Sheet'!$K$7:$K$5008<>"",ROW('Vendor Master Sheet'!$K$7:$K$5008)-ROW('Vendor Master Sheet'!$K$7)+1,""),ROW('Vendor Master Sheet'!B178)))," ") -> 
A185: 178 | L185: =IFERROR(INDEX('Vendor Master Sheet'!$K$7:$K$5008,SMALL(IF('Vendor Master Sheet'!$K$7:$K$5008<>"",ROW('Vendor Master Sheet'!$K$7:$K$5008)-ROW('Vendor Master Sheet'!$K$7)+1,""),ROW('Vendor Master Sheet'!B179)))," ") -> 
A186: 179 | L186: =IFERROR(INDEX('Vendor Master Sheet'!$K$7:$K$5008,SMALL(IF('Vendor Master Sheet'!$K$7:$K$5008<>"",ROW('Vendor Master Sheet'!$K$7:$K$5008)-ROW('Vendor Master Sheet'!$K$7)+1,""),ROW('Vendor Master Sheet'!B180)))," ") -> 
A187: 180 | L187: =IFERROR(INDEX('Vendor Master Sheet'!$K$7:$K$5008,SMALL(IF('Vendor Master Sheet'!$K$7:$K$5008<>"",ROW('Vendor Master Sheet'!$K$7:$K$5008)-ROW('Vendor Master Sheet'!$K$7)+1,""),ROW('Vendor Master Sheet'!B181)))," ") -> 
A188: 181 | L188: =IFERROR(INDEX('Vendor Master Sheet'!$K$7:$K$5008,SMALL(IF('Vendor Master Sheet'!$K$7:$K$5008<>"",ROW('Vendor Master Sheet'!$K$7:$K$5008)-ROW('Vendor Master Sheet'!$K$7)+1,""),ROW('Vendor Master Sheet'!B182)))," ") -> 
A189: 182 | L189: =IFERROR(INDEX('Vendor Master Sheet'!$K$7:$K$5008,SMALL(IF('Vendor Master Sheet'!$K$7:$K$5008<>"",ROW('Vendor Master Sheet'!$K$7:$K$5008)-ROW('Vendor Master Sheet'!$K$7)+1,""),ROW('Vendor Master Sheet'!B183)))," ") -> 
A190: 183 | L190: =IFERROR(INDEX('Vendor Master Sheet'!$K$7:$K$5008,SMALL(IF('Vendor Master Sheet'!$K$7:$K$5008<>"",ROW('Vendor Master Sheet'!$K$7:$K$5008)-ROW('Vendor Master Sheet'!$K$7)+1,""),ROW('Vendor Master Sheet'!B184)))," ") -> 
A191: 184 | L191: =IFERROR(INDEX('Vendor Master Sheet'!$K$7:$K$5008,SMALL(IF('Vendor Master Sheet'!$K$7:$K$5008<>"",ROW('Vendor Master Sheet'!$K$7:$K$5008)-ROW('Vendor Master Sheet'!$K$7)+1,""),ROW('Vendor Master Sheet'!B185)))," ") -> 
A192: 185 | L192: =IFERROR(INDEX('Vendor Master Sheet'!$K$7:$K$5008,SMALL(IF('Vendor Master Sheet'!$K$7:$K$5008<>"",ROW('Vendor Master Sheet'!$K$7:$K$5008)-ROW('Vendor Master Sheet'!$K$7)+1,""),ROW('Vendor Master Sheet'!B186)))," ") -> 
A193: 186 | L193: =IFERROR(INDEX('Vendor Master Sheet'!$K$7:$K$5008,SMALL(IF('Vendor Master Sheet'!$K$7:$K$5008<>"",ROW('Vendor Master Sheet'!$K$7:$K$5008)-ROW('Vendor Master Sheet'!$K$7)+1,""),ROW('Vendor Master Sheet'!B187)))," ") -> 
A194: 187 | L194: =IFERROR(INDEX('Vendor Master Sheet'!$K$7:$K$5008,SMALL(IF('Vendor Master Sheet'!$K$7:$K$5008<>"",ROW('Vendor Master Sheet'!$K$7:$K$5008)-ROW('Vendor Master Sheet'!$K$7)+1,""),ROW('Vendor Master Sheet'!B188)))," ") -> 
A195: 188 | L195: =IFERROR(INDEX('Vendor Master Sheet'!$K$7:$K$5008,SMALL(IF('Vendor Master Sheet'!$K$7:$K$5008<>"",ROW('Vendor Master Sheet'!$K$7:$K$5008)-ROW('Vendor Master Sheet'!$K$7)+1,""),ROW('Vendor Master Sheet'!B189)))," ") -> 
A196: 189 | L196: =IFERROR(INDEX('Vendor Master Sheet'!$K$7:$K$5008,SMALL(IF('Vendor Master Sheet'!$K$7:$K$5008<>"",ROW('Vendor Master Sheet'!$K$7:$K$5008)-ROW('Vendor Master Sheet'!$K$7)+1,""),ROW('Vendor Master Sheet'!B190)))," ") -> 
A197: 190 | L197: =IFERROR(INDEX('Vendor Master Sheet'!$K$7:$K$5008,SMALL(IF('Vendor Master Sheet'!$K$7:$K$5008<>"",ROW('Vendor Master Sheet'!$K$7:$K$5008)-ROW('Vendor Master Sheet'!$K$7)+1,""),ROW('Vendor Master Sheet'!B191)))," ") -> 
A198: 191 | L198: =IFERROR(INDEX('Vendor Master Sheet'!$K$7:$K$5008,SMALL(IF('Vendor Master Sheet'!$K$7:$K$5008<>"",ROW('Vendor Master Sheet'!$K$7:$K$5008)-ROW('Vendor Master Sheet'!$K$7)+1,""),ROW('Vendor Master Sheet'!B192)))," ") -> 
A199: 192 | L199: =IFERROR(INDEX('Vendor Master Sheet'!$K$7:$K$5008,SMALL(IF('Vendor Master Sheet'!$K$7:$K$5008<>"",ROW('Vendor Master Sheet'!$K$7:$K$5008)-ROW('Vendor Master Sheet'!$K$7)+1,""),ROW('Vendor Master Sheet'!B193)))," ") -> 
A200: 193 | K200: =IF(J200="Yes",B200,"") ->  | L200: =IFERROR(INDEX('Vendor Master Sheet'!$K$7:$K$5008,SMALL(IF('Vendor Master Sheet'!$K$7:$K$5008<>"",ROW('Vendor Master Sheet'!$K$7:$K$5008)-ROW('Vendor Master Sheet'!$K$7)+1,""),ROW('Vendor Master Sheet'!B194)))," ") -> 
A201: 194 | J201: =IF(OR(D201="Trader- Wholesalers & Retailers",F201="Medium Entity",F201="NA",E201="No"),"No",IF(OR(D201="Manufacturer",D201="Service Provider",F201="Micro Entity",F201="Small Entity"),"Yes"," ")) ->  | L201: =IFERROR(INDEX('Vendor Master Sheet'!$K$7:$K$5008,SMALL(IF('Vendor Master Sheet'!$K$7:$K$5008<>"",ROW('Vendor Master Sheet'!$K$7:$K$5008)-ROW('Vendor Master Sheet'!$K$7)+1,""),ROW('Vendor Master Sheet'!B195)))," ") -> 
... 4807 more rows

Sheet Sec 43B(h) Working
A1: ='Vendor Master Sheet'!A1 -> Name of the Firm: ABC & Co., Chartered Accountants | N1: Data input in Yellow fields only
A2: ='Vendor Master Sheet'!A2 -> Name of the Client: XYZ Services Private Limited | M2: 2024-03-31
A3: Calculation of Interest u/s 16 of MSMED Act, 2006 and Disallowance u/s 43B(h) of Income Tax Act, 1961
A4: ='Vendor Master Sheet'!A4 -> Financial Year 2023-24
A5: ='Vendor Master Sheet'!A5 -> Assessment Year 2024-25
K6: Bank Rate | L6: 0.065
A7: Total | E7: =SUM(E9:E20009) -> 680000 | L7: =SUM(L9:L20009) -> 29843.78674 | M7: =SUM(M9:M20009) -> 355000
A8: Sr. No. | B8: Name of the Eligible Party | C8: Date of Invoice | D8: Invoice No. | E8: Invoice Amount (Transferred to P&L) | F8: Whether entered into an Agreement? | G8: If entered into an Agreement- Credit Period agreed | H8: Credit Period Maximum upto (45/15) | I8: Due Date | J8: Date of Payment | K8: Delay | L8: Interest | M8: Disallowance | N8: Sample Selected by Auditor for Verification
A9: =1 -> 1 | B9: Shruti Enterprises | C9: 2023-10-11 | D9: Pune/23-24/105 | E9: 100000 | F9: Yes | G9: 60 | H9: =IF(F9="Yes",MIN("45",G9),IF(F9="No","15",0)) -> 45 | I9: =C9+H9 -> 2023-11-25 | J9: 2024-05-31 | K9: =IF(J9-I9>0,J9-I9,0) -> 188 | L9: =IF(K9>0,E9*((1+($L$6*3)/12)^(K9/30)-1),0) -> 10629.30072 | M9: =IF(AND(I9<J9,J9>$M$2),E9,0) -> 100000 | N9: Yes | S9: =IF(AND(I9<=$M$2,J9>$M$2),E9,0) -> 100000
A10: =A9+1 -> 2 | B10: Manmath Consultancy Services LLP | C10: 2024-03-01 | D10: 23-24/05 | E10: 175000 | F10: Yes | G10: 30 | H10: =IF(F10="Yes",MIN("45",G10),IF(F10="No","15",0)) -> 30 | I10: =C10+H10 -> 2024-03-31 | J10: 2024-05-05 | K10: 35 | L10: =IF(K10>0,E10*((1+($L$6*3)/12)^(K10/30)-1),0) -> 3322.180933 | M10: =IF(AND(I10<J10,J10>$M$2),E10,0) -> 175000 | N10: No
A11: =A10+1 -> 3 | B11: Prem Products Manufacturing Pvt. Ltd | C11: 2023-10-31 | D11: ABC-45 | E11: 200000 | F11: No | G11: 0 | H11: 15 | I11: =C11+H11 -> 2023-11-15 | J11: 2024-03-31 | K11: 137 | L11: 15277.7835 | M11: 0 | N11: Yes
A12: =A11+1 -> 4 | B12: Deshmukh Associates | C12: 2024-02-01 | D12: XYZ-123 | E12: 50000 | F12: Yes | G12: 10 | H12: 10 | I12: =C12+H12 -> 2024-02-11 | J12: 2024-02-13 | K12: 2 | L12: 53.76015377 | M12: 0 | N12: Yes
A13: 5 | B13: Sanskruti Transports | C13: 2024-03-15 | D13: Inv/23-24/005 | E13: 75000 | F13: Yes | G13: 60 | H13: 45 | I13: =C13+H13 -> 2024-04-29 | J13: 2024-04-27 | K13: 0 | L13: 0 | M13: 0 | N13: No
A14: 6 | B14: Sammed Wholesalers | C14: 2024-03-17 | D14: SW/23-24/104 | E14: 80000 | F14: Yes | G14: 30 | H14: 30 | I14: 2024-04-16 | J14: 2024-04-29 | K14: 13 | L14: 560.7614362 | M14: 80000 | N14: Yes
A15: 7 | H15: 0 | I15: 00:00:00 | K15: =IF(J15-I15>0,J15-I15,0) -> 0 | L15: 0 | M15: 0
A16: 8 | H16: 0 | I16: 00:00:00 | K16: 0 | L16: 0 | M16: 0
A17: 9 | H17: 0 | I17: 00:00:00 | K17: 0 | L17: 0 | M17: 0
A18: 10 | H18: 0 | I18: 00:00:00 | K18: 0 | L18: 0 | M18: 0
A19: 11 | H19: 0 | I19: 00:00:00 | K19: 0 | L19: 0 | M19: 0
A20: 12 | H20: 0 | I20: =C20+H20 -> 00:00:00 | K20: =IF(J20-I20>0,J20-I20,0) -> 0 | L20: 0 | M20: 0
A21: 13 | H21: 0 | I21: 00:00:00 | K21: 0 | L21: 0 | M21: 0
A22: 14 | H22: 0 | I22: 00:00:00 | K22: 0 | L22: 0 | M22: 0
A23: 15 | H23: 0 | I23: 00:00:00 | K23: 0 | L23: 0 | M23: 0
A24: 16 | H24: 0 | I24: 00:00:00 | K24: 0 | L24: 0 | M24: 0
A25: 17 | H25: 0 | I25: 00:00:00 | K25: 0 | L25: 0 | M25: 0
A26: 18 | H26: 0 | I26: 00:00:00 | K26: 0 | L26: 0 | M26: 0
A27: 19 | H27: 0 | I27: 00:00:00 | K27: 0 | L27: 0 | M27: 0
A28: 20 | H28: 0 | I28: 00:00:00 | K28: 0 | L28: 0 | M28: 0
A29: 21 | H29: 0 | I29: 00:00:00 | K29: 0 | L29: 0 | M29: 0
A30: 22 | H30: 0 | I30: 00:00:00 | K30: 0 | L30: 0 | M30: 0
A31: 23 | H31: 0 | I31: 00:00:00 | K31: 0 | L31: 0 | M31: 0
A32: 24 | H32: 0 | I32: 00:00:00 | K32: 0 | L32: 0 | M32: 0
A33: 25 | H33: 0 | I33: 00:00:00 | K33: 0 | L33: 0 | M33: 0
A34: 26 | H34: 0 | I34: 00:00:00 | K34: 0 | L34: 0 | M34: 0
A35: 27 | H35: 0 | I35: 00:00:00 | K35: 0 | L35: 0 | M35: 0
A36: 28 | H36: 0 | I36: 00:00:00 | K36: 0 | L36: 0 | M36: 0
A37: 29 | H37: 0 | I37: 00:00:00 | K37: 0 | L37: 0 | M37: 0
A38: 30 | H38: 0 | I38: 00:00:00 | K38: 0 | L38: 0 | M38: 0
A39: 31 | H39: 0 | I39: 00:00:00 | K39: 0 | L39: 0 | M39: 0
A40: 32 | H40: 0 | I40: 00:00:00 | K40: 0 | L40: 0 | M40: 0
A41: 33 | H41: 0 | I41: 00:00:00 | K41: 0 | L41: 0 | M41: 0
A42: 34 | H42: 0 | I42: 00:00:00 | K42: 0 | L42: 0 | M42: 0
A43: 35 | H43: 0 | I43: 00:00:00 | K43: 0 | L43: 0 | M43: 0
A44: 36 | H44: 0 | I44: 00:00:00 | K44: 0 | L44: 0 | M44: 0
A45: 37 | H45: 0 | I45: 00:00:00 | K45: 0 | L45: 0 | M45: 0
A46: 38 | H46: 0 | I46: 00:00:00 | K46: 0 | L46: 0 | M46: 0
A47: 39 | H47: 0 | I47: 00:00:00 | K47: 0 | L47: 0 | M47: 0
A48: 40 | H48: 0 | I48: 00:00:00 | K48: 0 | L48: 0 | M48: 0
A49: 41 | H49: 0 | I49: 00:00:00 | K49: 0 | L49: 0 | M49: 0
A50: 42 | H50: 0 | I50: 00:00:00 | K50: 0 | L50: 0 | M50: 0
A51: 43 | H51: 0 | I51: 00:00:00 | K51: 0 | L51: 0 | M51: 0
A52: 44 | H52: 0 | I52: 00:00:00 | K52: 0 | L52: 0 | M52: 0
A53: 45 | H53: 0 | I53: 00:00:00 | K53: 0 | L53: 0 | M53: 0
A54: 46 | H54: 0 | I54: 00:00:00 | K54: 0 | L54: 0 | M54: 0
A55: 47 | H55: 0 | I55: 00:00:00 | K55: 0 | L55: 0 | M55: 0
A56: 48 | H56: 0 | I56: 00:00:00 | K56: 0 | L56: 0 | M56: 0
A57: 49 | H57: 0 | I57: 00:00:00 | K57: 0 | L57: 0 | M57: 0
A58: 50 | H58: 0 | I58: 00:00:00 | K58: 0 | L58: 0 | M58: 0
A59: 51 | H59: 0 | I59: 00:00:00 | K59: 0 | L59: 0 | M59: 0
A60: 52 | H60: 0 | I60: 00:00:00 | K60: 0 | L60: 0 | M60: 0
A61: 53 | H61: 0 | I61: 00:00:00 | K61: 0 | L61: 0 | M61: 0
A62: 54 | H62: 0 | I62: 00:00:00 | K62: 0 | L62: 0 | M62: 0
A63: 55 | H63: 0 | I63: 00:00:00 | K63: 0 | L63: 0 | M63: 0
A64: 56 | H64: 0 | I64: 00:00:00 | K64: 0 | L64: 0 | M64: 0
A65: 57 | H65: 0 | I65: 00:00:00 | K65: 0 | L65: 0 | M65: 0
A66: 58 | H66: 0 | I66: 00:00:00 | K66: 0 | L66: 0 | M66: 0
A67: 59 | H67: 0 | I67: 00:00:00 | K67: 0 | L67: 0 | M67: 0
A68: 60 | H68: 0 | I68: 00:00:00 | K68: 0 | L68: 0 | M68: 0
A69: 61 | H69: 0 | I69: 00:00:00 | K69: 0 | L69: 0 | M69: 0
A70: 62 | H70: 0 | I70: 00:00:00 | K70: 0 | L70: 0 | M70: 0
A71: 63 | H71: 0 | I71: 00:00:00 | K71: 0 | L71: 0 | M71: 0
A72: 64 | H72: 0 | I72: 00:00:00 | K72: 0 | L72: 0 | M72: 0
A73: 65 | H73: 0 | I73: 00:00:00 | K73: 0 | L73: 0 | M73: 0
A74: 66 | H74: =IF(F74="Yes",MIN("45",G74),IF(F74="No","15",0)) -> 0 | I74: 00:00:00 | K74: 0 | L74: =IF(K74>0,E74*((1+($L$6*3)/12)^(K74/30)-1),0) -> 0 | M74: =IF(AND(I74<J74,J74>$M$2),E74,0) -> 0
A75: =A74+1 -> 67 | H75: 0 | I75: 00:00:00 | K75: 0 | L75: 0 | M75: 0
A76: 68 | H76: 0 | I76: 00:00:00 | K76: 0 | L76: 0 | M76: 0
A77: 69 | H77: 0 | I77: 00:00:00 | K77: 0 | L77: 0 | M77: 0
A78: 70 | H78: 0 | I78: 00:00:00 | K78: 0 | L78: 0 | M78: 0
A79: 71 | H79: 0 | I79: 00:00:00 | K79: 0 | L79: 0 | M79: 0
A80: 72 | H80: 0 | I80: 00:00:00 | K80: 0 | L80: 0 | M80: 0
A81: 73 | H81: 0 | I81: 00:00:00 | K81: 0 | L81: 0 | M81: 0
A82: 74 | H82: 0 | I82: 00:00:00 | K82: 0 | L82: 0 | M82: 0
A83: 75 | H83: 0 | I83: 00:00:00 | K83: 0 | L83: 0 | M83: 0
A84: 76 | H84: 0 | I84: =C84+H84 -> 00:00:00 | K84: =IF(J84-I84>0,J84-I84,0) -> 0 | L84: 0 | M84: 0
A85: 77 | H85: 0 | I85: 00:00:00 | K85: 0 | L85: 0 | M85: 0
A86: 78 | H86: 0 | I86: 00:00:00 | K86: 0 | L86: 0 | M86: 0
A87: 79 | H87: 0 | I87: 00:00:00 | K87: 0 | L87: 0 | M87: 0
A88: 80 | H88: 0 | I88: 00:00:00 | K88: 0 | L88: 0 | M88: 0
A89: 81 | H89: 0 | I89: 00:00:00 | K89: 0 | L89: 0 | M89: 0
A90: 82 | H90: 0 | I90: 00:00:00 | K90: 0 | L90: 0 | M90: 0
A91: 83 | H91: 0 | I91: 00:00:00 | K91: 0 | L91: 0 | M91: 0
A92: 84 | H92: 0 | I92: 00:00:00 | K92: 0 | L92: 0 | M92: 0
A93: 85 | H93: 0 | I93: 00:00:00 | K93: 0 | L93: 0 | M93: 0
A94: 86 | H94: 0 | I94: 00:00:00 | K94: 0 | L94: 0 | M94: 0
A95: 87 | H95: 0 | I95: 00:00:00 | K95: 0 | L95: 0 | M95: 0
A96: 88 | H96: 0 | I96: 00:00:00 | K96: 0 | L96: 0 | M96: 0
A97: 89 | H97: 0 | I97: 00:00:00 | K97: 0 | L97: 0 | M97: 0
A98: 90 | H98: 0 | I98: 00:00:00 | K98: 0 | L98: 0 | M98: 0
A99: 91 | H99: 0 | I99: 00:00:00 | K99: 0 | L99: 0 | M99: 0
A100: 92 | H100: 0 | I100: 00:00:00 | K100: 0 | L100: 0 | M100: 0
A101: 93 | H101: 0 | I101: 00:00:00 | K101: 0 | L101: 0 | M101: 0
A102: 94 | H102: 0 | I102: 00:00:00 | K102: 0 | L102: 0 | M102: 0
A103: 95 | H103: 0 | I103: 00:00:00 | K103: 0 | L103: 0 | M103: 0
A104: 96 | H104: 0 | I104: 00:00:00 | K104: 0 | L104: 0 | M104: 0
A105: 97 | H105: 0 | I105: 00:00:00 | K105: 0 | L105: 0 | M105: 0
A106: 98 | H106: 0 | I106: 00:00:00 | K106: 0 | L106: 0 | M106: 0
A107: 99 | H107: 0 | I107: 00:00:00 | K107: 0 | L107: 0 | M107: 0
A108: 100 | H108: 0 | I108: 00:00:00 | K108: 0 | L108: 0 | M108: 0
A109: 101 | H109: 0 | I109: 00:00:00 | K109: 0 | L109: 0 | M109: 0
A110: 102 | H110: 0 | I110: 00:00:00 | K110: 0 | L110: 0 | M110: 0
A111: 103 | H111: 0 | I111: 00:00:00 | K111: 0 | L111: 0 | M111: 0
A112: 104 | H112: 0 | I112: 00:00:00 | K112: 0 | L112: 0 | M112: 0
A113: 105 | H113: 0 | I113: 00:00:00 | K113: 0 | L113: 0 | M113: 0
A114: 106 | H114: 0 | I114: 00:00:00 | K114: 0 | L114: 0 | M114: 0
A115: 107 | H115: 0 | I115: 00:00:00 | K115: 0 | L115: 0 | M115: 0
A116: 108 | H116: 0 | I116: 00:00:00 | K116: 0 | L116: 0 | M116: 0
A117: 109 | H117: 0 | I117: 00:00:00 | K117: 0 | L117: 0 | M117: 0
A118: 110 | H118: 0 | I118: 00:00:00 | K118: 0 | L118: 0 | M118: 0
A119: 111 | H119: 0 | I119: 00:00:00 | K119: 0 | L119: 0 | M119: 0
A120: 112 | H120: 0 | I120: 00:00:00 | K120: 0 | L120: 0 | M120: 0
A121: 113 | H121: 0 | I121: 00:00:00 | K121: 0 | L121: 0 | M121: 0
A122: 114 | H122: 0 | I122: 00:00:00 | K122: 0 | L122: 0 | M122: 0
A123: 115 | H123: 0 | I123: 00:00:00 | K123: 0 | L123: 0 | M123: 0
A124: 116 | H124: 0 | I124: 00:00:00 | K124: 0 | L124: 0 | M124: 0
A125: 117 | H125: 0 | I125: 00:00:00 | K125: 0 | L125: 0 | M125: 0
A126: 118 | H126: 0 | I126: 00:00:00 | K126: 0 | L126: 0 | M126: 0
A127: 119 | H127: 0 | I127: 00:00:00 | K127: 0 | L127: 0 | M127: 0
A128: 120 | H128: 0 | I128: 00:00:00 | K128: 0 | L128: 0 | M128: 0
A129: 121 | H129: 0 | I129: 00:00:00 | K129: 0 | L129: 0 | M129: 0
A130: 122 | H130: 0 | I130: 00:00:00 | K130: 0 | L130: 0 | M130: 0
A131: 123 | H131: 0 | I131: 00:00:00 | K131: 0 | L131: 0 | M131: 0
A132: 124 | H132: 0 | I132: 00:00:00 | K132: 0 | L132: 0 | M132: 0
A133: 125 | H133: 0 | I133: 00:00:00 | K133: 0 | L133: 0 | M133: 0
A134: 126 | H134: 0 | I134: 00:00:00 | K134: 0 | L134: 0 | M134: 0
A135: 127 | H135: 0 | I135: 00:00:00 | K135: 0 | L135: 0 | M135: 0
A136: 128 | H136: 0 | I136: 00:00:00 | K136: 0 | L136: 0 | M136: 0
A137: 129 | H137: 0 | I137: 00:00:00 | K137: 0 | L137: 0 | M137: 0
A138: 130 | H138: =IF(F138="Yes",MIN("45",G138),IF(F138="No","15",0)) -> 0 | I138: 00:00:00 | K138: 0 | L138: =IF(K138>0,E138*((1+($L$6*3)/12)^(K138/30)-1),0) -> 0 | M138: =IF(AND(I138<J138,J138>$M$2),E138,0) -> 0
A139: =A138+1 -> 131 | H139: 0 | I139: 00:00:00 | K139: 0 | L139: 0 | M139: 0
A140: 132 | H140: 0 | I140: 00:00:00 | K140: 0 | L140: 0 | M140: 0
A141: 133 | H141: 0 | I141: 00:00:00 | K141: 0 | L141: 0 | M141: 0
A142: 134 | H142: 0 | I142: 00:00:00 | K142: 0 | L142: 0 | M142: 0
A143: 135 | H143: 0 | I143: 00:00:00 | K143: 0 | L143: 0 | M143: 0
A144: 136 | H144: 0 | I144: 00:00:00 | K144: 0 | L144: 0 | M144: 0
A145: 137 | H145: 0 | I145: 00:00:00 | K145: 0 | L145: 0 | M145: 0
A146: 138 | H146: 0 | I146: 00:00:00 | K146: 0 | L146: 0 | M146: 0
A147: 139 | H147: 0 | I147: 00:00:00 | K147: 0 | L147: 0 | M147: 0
A148: 140 | H148: 0 | I148: =C148+H148 -> 00:00:00 | K148: =IF(J148-I148>0,J148-I148,0) -> 0 | L148: 0 | M148: 0
A149: 141 | H149: 0 | I149: 00:00:00 | K149: 0 | L149: 0 | M149: 0
A150: 142 | H150: 0 | I150: 00:00:00 | K150: 0 | L150: 0 | M150: 0
A151: 143 | H151: 0 | I151: 00:00:00 | K151: 0 | L151: 0 | M151: 0
A152: 144 | H152: 0 | I152: 00:00:00 | K152: 0 | L152: 0 | M152: 0
A153: 145 | H153: 0 | I153: 00:00:00 | K153: 0 | L153: 0 | M153: 0
A154: 146 | H154: 0 | I154: 00:00:00 | K154: 0 | L154: 0 | M154: 0
A155: 147 | H155: 0 | I155: 00:00:00 | K155: 0 | L155: 0 | M155: 0
A156: 148 | H156: 0 | I156: 00:00:00 | K156: 0 | L156: 0 | M156: 0
A157: 149 | H157: 0 | I157: 00:00:00 | K157: 0 | L157: 0 | M157: 0
A158: 150 | H158: 0 | I158: 00:00:00 | K158: 0 | L158: 0 | M158: 0
A159: 151 | H159: 0 | I159: 00:00:00 | K159: 0 | L159: 0 | M159: 0
A160: 152 | H160: 0 | I160: 00:00:00 | K160: 0 | L160: 0 | M160: 0
A161: 153 | H161: 0 | I161: 00:00:00 | K161: 0 | L161: 0 | M161: 0
A162: 154 | H162: 0 | I162: 00:00:00 | K162: 0 | L162: 0 | M162: 0
A163: 155 | H163: 0 | I163: 00:00:00 | K163: 0 | L163: 0 | M163: 0
A164: 156 | H164: 0 | I164: 00:00:00 | K164: 0 | L164: 0 | M164: 0
A165: 157 | H165: 0 | I165: 00:00:00 | K165: 0 | L165: 0 | M165: 0
A166: 158 | H166: 0 | I166: 00:00:00 | K166: 0 | L166: 0 | M166: 0
A167: 159 | H167: 0 | I167: 00:00:00 | K167: 0 | L167: 0 | M167: 0
A168: 160 | H168: 0 | I168: 00:00:00 | K168: 0 | L168: 0 | M168: 0
A169: 161 | H169: 0 | I169: 00:00:00 | K169: 0 | L169: 0 | M169: 0
A170: 162 | H170: 0 | I170: 00:00:00 | K170: 0 | L170: 0 | M170: 0
A171: 163 | H171: 0 | I171: 00:00:00 | K171: 0 | L171: 0 | M171: 0
A172: 164 | H172: 0 | I172: 00:00:00 | K172: 0 | L172: 0 | M172: 0
A173: 165 | H173: 0 | I173: 00:00:00 | K173: 0 | L173: 0 | M173: 0
A174: 166 | H174: 0 | I174: 00:00:00 | K174: 0 | L174: 0 | M174: 0
A175: 167 | H175: 0 | I175: 00:00:00 | K175: 0 | L175: 0 | M175: 0
A176: 168 | H176: 0 | I176: 00:00:00 | K176: 0 | L176: 0 | M176: 0
A177: 169 | H177: 0 | I177: 00:00:00 | K177: 0 | L177: 0 | M177: 0
A178: 170 | H178: 0 | I178: 00:00:00 | K178: 0 | L178: 0 | M178: 0
A179: 171 | H179: 0 | I179: 00:00:00 | K179: 0 | L179: 0 | M179: 0
A180: 172 | H180: 0 | I180: 00:00:00 | K180: 0 | L180: 0 | M180: 0
A181: 173 | H181: 0 | I181: 00:00:00 | K181: 0 | L181: 0 | M181: 0
A182: 174 | H182: 0 | I182: 00:00:00 | K182: 0 | L182: 0 | M182: 0
A183: 175 | H183: 0 | I183: 00:00:00 | K183: 0 | L183: 0 | M183: 0
A184: 176 | H184: 0 | I184: 00:00:00 | K184: 0 | L184: 0 | M184: 0
A185: 177 | H185: 0 | I185: 00:00:00 | K185: 0 | L185: 0 | M185: 0
A186: 178 | H186: 0 | I186: 00:00:00 | K186: 0 | L186: 0 | M186: 0
A187: 179 | H187: 0 | I187: 00:00:00 | K187: 0 | L187: 0 | M187: 0
A188: 180 | H188: 0 | I188: 00:00:00 | K188: 0 | L188: 0 | M188: 0
A189: 181 | H189: 0 | I189: 00:00:00 | K189: 0 | L189: 0 | M189: 0
A190: 182 | H190: 0 | I190: 00:00:00 | K190: 0 | L190: 0 | M190: 0
A191: 183 | H191: 0 | I191: 00:00:00 | K191: 0 | L191: 0 | M191: 0
A192: 184 | H192: 0 | I192: 00:00:00 | K192: 0 | L192: 0 | M192: 0
A193: 185 | H193: 0 | I193: 00:00:00 | K193: 0 | L193: 0 | M193: 0
A194: 186 | H194: 0 | I194: 00:00:00 | K194: 0 | L194: 0 | M194: 0
A195: 187 | H195: 0 | I195: 00:00:00 | K195: 0 | L195: 0 | M195: 0
A196: 188 | H196: 0 | I196: 00:00:00 | K196: 0 | L196: 0 | M196: 0
A197: 189 | H197: 0 | I197: 00:00:00 | K197: 0 | L197: 0 | M197: 0
A198: 190 | H198: 0 | I198: 00:00:00 | K198: 0 | L198: 0 | M198: 0
A199: 191 | H199: 0 | I199: 00:00:00 | K199: 0 | L199: 0 | M199: 0
A200: 192 | H200: 0 | I200: 00:00:00 | K200: 0 | L200: 0 | M200: 0
... 4300 more rows

Sheet 3CD Dashboard
A1: ='Vendor Master Sheet'!A1 -> Name of the Firm: ABC & Co., Chartered Accountants
A2: ='Vendor Master Sheet'!A2 -> Name of the Client: XYZ Services Private Limited
A3: Impact of Sec 43B(h), its reporting in Form- 3CD Tax Audit Report & Computation of Income
A4: ='Vendor Master Sheet'!A4 -> Financial Year 2023-24
A5: ='Vendor Master Sheet'!A5 -> Assessment Year 2024-25
B7: Clause 22 of Tax Audit Report:
A8: a) | B8: Amount of interest inadmissible under section 23 of the MSMED Act, 2006
B10: As per section 23 of MSMED Act, 2006 - any amount paid as interest to MSMEs on account of delayed payments shall be disallowed.
B12: Hence, interest calculated u/s 16 of MSMED Act, 2006 shall be disallowed as stated in section 23 and the same will be reported in Clause 22 of Form 3CD.
A14: b) | B14: Any other amount not allowable under clause (h) of section 43B of the Income-tax Act, 1961.
B16: Section 43B(h) states that any sum payable by the assessee to a Micro & Small Enterprise beyond the time limit specified in Section 15 of the MSMED Act, 2006 shall be allowed only in computing the income of the previous year in which the sum has been actually paid.
B18: Hence the sum outstanding as of year end and not paid within the due date of Sec 15 of MSMED Act, 2006 shall be disallowed u/s 43B(h) and the same shall be reported in Clause 22 of Form 3CD.
B20: Reporting in form 3CD Tax Audit Report
B21: Clause 22 | C21: Description | D21: Amount (Rs.)
B22: a) | C22: Amount of interest inadmissible under section 23 of the MSMED Act, 2006 | D22: ='Sec 43B(h) Working'!L7 -> 29843.78674
B23: b) | C23: Any other amount not allowable under clause (h) of section 43B of the Income-tax Act, 1961. | D23: ='Sec 43B(h) Working'!M7 -> 355000
B25: Impact on Computation of Total Income
B26: Sr. No. | C26: Particulars | D26: Amount (Rs.)
B28: 1 | C28: Add: Inadmissible expenses & Income not included
B30: a) | C30: Interest to MSME parties u/s 37(1) of Income Tax Act, 1961 | D30: =D22 -> 29843.78674
B31: b) | C31: Amount payable to MSME Parties u/s 43B(h) of Income Tax Act, 1961 | D31: =D23 -> 355000
C33: Total Disallowance | D33: =D30+D31 -> 384843.7867
B35: Input Prepared By:_________ | E35: Reviewed By:___________
B36: Date:________ | E36: Date:________

Sheet 3CA-CB Dashboard
A1: ='Vendor Master Sheet'!A1 -> Name of the Firm: ABC & Co., Chartered Accountants
A2: ='Vendor Master Sheet'!A2 -> Name of the Client: XYZ Services Private Limited
A3: Extent of Checking, Verification of Data and Conclusion for Form 3CA/3CB Reporting
A4: ='Vendor Master Sheet'!A4 -> Financial Year 2023-24
A5: ='Vendor Master Sheet'!A5 -> Assessment Year 2024-25
B7: Extent of Checking and Verification
B9: Particulars | C9: No. of Parties | D9: Amount (Rs.)
B11: Sample Selection
B12: Parties of Trade Payables in Total | C12: =COUNTA('Vendor Master Sheet'!$B$8:$B$1048576) -> 7 | D12: =SUM('Vendor Master Sheet'!C8:C1048576) -> 775000
B13: Trade Payables to whom disallowance u/s 43B(h) is applicable | C13: =COUNTIF('Vendor Master Sheet'!$J$8:$J$1048576,"Yes") -> 6 | D13: =SUMIF('Vendor Master Sheet'!$J$8:$J$1048576,"Yes",'Vendor Master Sheet'!$C$8:$C$1048576) -> 675000
B14: Sample Selected for Verification | C14: =COUNTIF('Sec 43B(h) Working'!$N$9:$N$1048576,"Yes") -> 4 | D14: =SUMIF('Sec 43B(h) Working'!$N$9:$N$1048576,"Yes",'Sec 43B(h) Working'!$E$9:$E$1048576) -> 430000
B15: Extent of Checking | C15: =C14/C13 -> 0.6666666667 | D15: =D14/D13 -> 0.637037037
B17: Verification of Sample
B18: Interest recorded in Books of Accounts | D18: 25000
B19: Interest Calculated as per Working | D19: ='3CD Dashboard'!D22 -> 29843.78674
B20: Difference if any | C20: =C18-C19 -> 0 | D20: =IF(D19-D18>0,D19-D18,) -> 4843.786738
B22: Section 43B(h) disallowance as per Client | D22: 355000
B23: Section 43B(h) disallowance as working | D23: ='3CD Dashboard'!D23 -> 355000
B24: Difference if any | C24: =C22-C23 -> 0 | D24: =IF(D23-D22>0,D23-D22,) -> 0
B26: Basis of Opinion
B27: Based on sample selection and result thereon either of the following Opinion Para may be issued while issuing the Auditor's Remark in Form 3CA-3CB as the case applicable. Please also refer ICAI Guidance Note.
A28: A) | B28: Assessee identifies all MSMEs and makes required provision and disallowance
B29: Unmodified Opinion
B30: No Separate comment required in Form 3CD as due Compliance is taken care.
A32: B) | B32: Assessee identifies all MSMEs and makes required provision and disallowance but 100% verification not done
B33: Modified - Qualified Opinion
B35: In respect of reporting under Clause 22 of Tax Audit Report, Assessee maintains Party wise Classification as MSME, has received Declaration from the Suppliers, Bill wise Payment details available in Accounting Software, etc. Overall, Assessee has in place mechanism for Calculation of Interest u/s 16 of MSMED Act, 2006 and disallowance of Amount u/s 43B(h) of Income Tax Act, 1961. While carrying out the Audit, we have verified such information and supporting on Sample basis as per the Guidelines issued by Institute of Chartered Accountants of India. However, we have not verified independently accuracy of MSME Classification. Reporting under respective clause is subject to correctness of such classification, Declaration so received and other calculation as provided by the Assessee.
A37: C) | B37: Assessee identifies all MSMEs however does not/short provided Interest u/s 16 of MSMED Act, 2006
B38: Modified - Adverse Opinion
B40: In respect of reporting under Clause 22 of Tax Audit Report, Assessee maintains Party wise Classification as per MSME, has received Declaration from the Suppliers, Bill wise Payment details available in Accounting Software, etc. Overall, Assessee has in place mechanism for Calculation of Interest u/s 16 of MSMED Act, 2006 and disallowance of Amount u/s 43B(h) of Income Tax Act, 1961. While carrying out the Audit, we have verified such information and supporting on Sample basis as per the Guidelines issued by Institute of Chartered Accountants of India. However, we have not verified independently the accuracy of MSME Classification. Reporting under respective clause is subject to correctness of Such Classification, Declaration so received and other Calculation as provided by the Assessee. We report that, the interest u/s 16 of MSMED Act, 2006 calculated and reported in the books of Assessee is short to the extent of Rs. _____.
A42: D) | B42: Assessee neither identifies all MSMEs nor makes required provision and disallowance
B43: Modified - Disclaimer Opinion
B45: In respect of reporting under Clause 22 of Tax Audit Report, Assessee does not maintain Party wise Classification of MSME, Declaration from the Suppliers, Bill wise Payment details, etc. Moreover, Assessee does not have in place mechanism for calculation of Interest u/s 16 of MSMED Act, 2006 and disallowance of Amount u/s 43B(h) of Income Tax Act, 1961. Due to insufficient supporting documentation and data availability, we are unable to ascertain whether the payments to MSMEs have been recorded properly, whether such payment requires Interest provision u/s 16 of MSMED Act, 2006 and disallowance under Section 43B(h) of income Tax Act, 1961 is warranted. Hence, unable to comment on accuracy of information provided therein. Our Opinion to that extent is disclaimed.
B47: Input Prepared By:_________ | C47: Reviewed By:___________
B48: Date:________ | C48: Date:________
